Workbook

Sheet Spreadsheet8.1
B10: Default Probability 1 | C10: 0.01
B11: Default Probability 2 | C11: 0.02
B12: Correlation | C12: 0.5
B13: Joint default probability | C13: =BivN(NORMSINV(C10),NORMSINV(C11),C12) -> 0.002059747477

Sheet Spreadsheet8.2a
B9: Portfolio Details
C10: Default Probability | D10: Threshold | E10: Mean | F10: Std Dev | G10: EE (×Alpha) | I10: Parameters
B11: Name 1 | C11: 0.008333333333 | D11: =NORMSINV(C11) -> -2.3939798 | E11: 0 | F11: 10 | G11: =(E11*NORMSDIST(E11/F11)+F11*NORMDIST(E11/F11,0,1,FALSE()))*Alpha -> 3.989422804 | I11: Alpha | J11: 1
B12: Name 2 | C12: 0.01666666667 | D12: =NORMSINV(C12) -> -2.128045234 | E12: 0 | F12: 10 | G12: 3.989422804 | I12: Num Names | J12: 100
B13: Name 3 | C13: 0.025 | D13: -1.959963985 | E13: 0 | F13: 10 | G13: 3.989422804 | I13: Correlation | J13: 0.25
B14: Name 4 | C14: 0.03333333333 | D14: -1.833914636 | E14: 0 | F14: 10 | G14: 3.989422804
B15: Name 5 | C15: 0.04166666667 | D15: -1.731664396 | E15: 0 | F15: 10 | G15: 3.989422804
B16: Name 6 | C16: 0.008333333333 | D16: -2.3939798 | E16: 0 | F16: 10 | G16: 3.989422804
B17: Name 7 | C17: 0.01666666667 | D17: -2.128045234 | E17: 0 | F17: 10 | G17: 3.989422804
B18: Name 8 | C18: 0.025 | D18: -1.959963985 | E18: 0 | F18: 10 | G18: 3.989422804
B19: Name 9 | C19: 0.03333333333 | D19: -1.833914636 | E19: 0 | F19: 10 | G19: 3.989422804
B20: Name 10 | C20: 0.04166666667 | D20: -1.731664396 | E20: 0 | F20: 10 | G20: 3.989422804
B21: Name 11 | C21: 0.008333333333 | D21: -2.3939798 | E21: 0 | F21: 10 | G21: 3.989422804
B22: Name 12 | C22: 0.01666666667 | D22: -2.128045234 | E22: 0 | F22: 10 | G22: 3.989422804
B23: Name 13 | C23: 0.025 | D23: -1.959963985 | E23: 0 | F23: 10 | G23: 3.989422804
B24: Name 14 | C24: 0.03333333333 | D24: -1.833914636 | E24: 0 | F24: 10 | G24: 3.989422804
B25: Name 15 | C25: 0.04166666667 | D25: -1.731664396 | E25: 0 | F25: 10 | G25: 3.989422804
B26: Name 16 | C26: 0.008333333333 | D26: -2.3939798 | E26: 0 | F26: 10 | G26: 3.989422804
B27: Name 17 | C27: 0.01666666667 | D27: -2.128045234 | E27: 0 | F27: 10 | G27: 3.989422804
B28: Name 18 | C28: 0.025 | D28: -1.959963985 | E28: 0 | F28: 10 | G28: 3.989422804
B29: Name 19 | C29: 0.03333333333 | D29: -1.833914636 | E29: 0 | F29: 10 | G29: 3.989422804
B30: Name 20 | C30: 0.04166666667 | D30: -1.731664396 | E30: 0 | F30: 10 | G30: 3.989422804
B31: Name 21 | C31: 0.008333333333 | D31: -2.3939798 | E31: 0 | F31: 10 | G31: 3.989422804
B32: Name 22 | C32: 0.01666666667 | D32: -2.128045234 | E32: 0 | F32: 10 | G32: 3.989422804
B33: Name 23 | C33: 0.025 | D33: -1.959963985 | E33: 0 | F33: 10 | G33: 3.989422804
B34: Name 24 | C34: 0.03333333333 | D34: -1.833914636 | E34: 0 | F34: 10 | G34: 3.989422804
B35: Name 25 | C35: 0.04166666667 | D35: -1.731664396 | E35: 0 | F35: 10 | G35: 3.989422804
B36: Name 26 | C36: 0.008333333333 | D36: -2.3939798 | E36: 0 | F36: 10 | G36: 3.989422804
B37: Name 27 | C37: 0.01666666667 | D37: -2.128045234 | E37: 0 | F37: 10 | G37: 3.989422804
B38: Name 28 | C38: 0.025 | D38: -1.959963985 | E38: 0 | F38: 10 | G38: 3.989422804
B39: Name 29 | C39: 0.03333333333 | D39: -1.833914636 | E39: 0 | F39: 10 | G39: 3.989422804
B40: Name 30 | C40: 0.04166666667 | D40: -1.731664396 | E40: 0 | F40: 10 | G40: 3.989422804
B41: Name 31 | C41: 0.008333333333 | D41: -2.3939798 | E41: 0 | F41: 10 | G41: 3.989422804
B42: Name 32 | C42: 0.01666666667 | D42: -2.128045234 | E42: 0 | F42: 10 | G42: 3.989422804
B43: Name 33 | C43: 0.025 | D43: -1.959963985 | E43: 0 | F43: 10 | G43: =(E43*NORMSDIST(E43/F43)+F43*NORMDIST(E43/F43,0,1,FALSE()))*Alpha -> 3.989422804
B44: Name 34 | C44: 0.03333333333 | D44: -1.833914636 | E44: 0 | F44: 10 | G44: 3.989422804
B45: Name 35 | C45: 0.04166666667 | D45: -1.731664396 | E45: 0 | F45: 10 | G45: 3.989422804
B46: Name 36 | C46: 0.008333333333 | D46: -2.3939798 | E46: 0 | F46: 10 | G46: 3.989422804
B47: Name 37 | C47: 0.01666666667 | D47: -2.128045234 | E47: 0 | F47: 10 | G47: 3.989422804
B48: Name 38 | C48: 0.025 | D48: -1.959963985 | E48: 0 | F48: 10 | G48: 3.989422804
B49: Name 39 | C49: 0.03333333333 | D49: -1.833914636 | E49: 0 | F49: 10 | G49: 3.989422804
B50: Name 40 | C50: 0.04166666667 | D50: -1.731664396 | E50: 0 | F50: 10 | G50: 3.989422804
B51: Name 41 | C51: 0.008333333333 | D51: -2.3939798 | E51: 0 | F51: 10 | G51: 3.989422804
B52: Name 42 | C52: 0.01666666667 | D52: -2.128045234 | E52: 0 | F52: 10 | G52: 3.989422804
B53: Name 43 | C53: 0.025 | D53: -1.959963985 | E53: 0 | F53: 10 | G53: 3.989422804
B54: Name 44 | C54: 0.03333333333 | D54: -1.833914636 | E54: 0 | F54: 10 | G54: 3.989422804
B55: Name 45 | C55: 0.04166666667 | D55: -1.731664396 | E55: 0 | F55: 10 | G55: 3.989422804
B56: Name 46 | C56: 0.008333333333 | D56: -2.3939798 | E56: 0 | F56: 10 | G56: 3.989422804
B57: Name 47 | C57: 0.01666666667 | D57: -2.128045234 | E57: 0 | F57: 10 | G57: 3.989422804
B58: Name 48 | C58: 0.025 | D58: -1.959963985 | E58: 0 | F58: 10 | G58: 3.989422804
B59: Name 49 | C59: 0.03333333333 | D59: -1.833914636 | E59: 0 | F59: 10 | G59: 3.989422804
B60: Name 50 | C60: 0.04166666667 | D60: -1.731664396 | E60: 0 | F60: 10 | G60: 3.989422804
B61: Name 51 | C61: 0.008333333333 | D61: -2.3939798 | E61: 0 | F61: 10 | G61: 3.989422804
B62: Name 52 | C62: 0.01666666667 | D62: -2.128045234 | E62: 0 | F62: 10 | G62: 3.989422804
B63: Name 53 | C63: 0.025 | D63: -1.959963985 | E63: 0 | F63: 10 | G63: 3.989422804
B64: Name 54 | C64: 0.03333333333 | D64: -1.833914636 | E64: 0 | F64: 10 | G64: 3.989422804
B65: Name 55 | C65: 0.04166666667 | D65: -1.731664396 | E65: 0 | F65: 10 | G65: 3.989422804
B66: Name 56 | C66: 0.008333333333 | D66: -2.3939798 | E66: 0 | F66: 10 | G66: 3.989422804
B67: Name 57 | C67: 0.01666666667 | D67: -2.128045234 | E67: 0 | F67: 10 | G67: 3.989422804
B68: Name 58 | C68: 0.025 | D68: -1.959963985 | E68: 0 | F68: 10 | G68: 3.989422804
B69: Name 59 | C69: 0.03333333333 | D69: -1.833914636 | E69: 0 | F69: 10 | G69: 3.989422804
B70: Name 60 | C70: 0.04166666667 | D70: -1.731664396 | E70: 0 | F70: 10 | G70: 3.989422804
B71: Name 61 | C71: 0.008333333333 | D71: -2.3939798 | E71: 0 | F71: 10 | G71: 3.989422804
B72: Name 62 | C72: 0.01666666667 | D72: -2.128045234 | E72: 0 | F72: 10 | G72: 3.989422804
B73: Name 63 | C73: 0.025 | D73: -1.959963985 | E73: 0 | F73: 10 | G73: 3.989422804
B74: Name 64 | C74: 0.03333333333 | D74: -1.833914636 | E74: 0 | F74: 10 | G74: 3.989422804
B75: Name 65 | C75: 0.04166666667 | D75: -1.731664396 | E75: 0 | F75: 10 | G75: =(E75*NORMSDIST(E75/F75)+F75*NORMDIST(E75/F75,0,1,FALSE()))*Alpha -> 3.989422804
B76: Name 66 | C76: 0.008333333333 | D76: =NORMSINV(C76) -> -2.3939798 | E76: 0 | F76: 10 | G76: 3.989422804
B77: Name 67 | C77: 0.01666666667 | D77: -2.128045234 | E77: 0 | F77: 10 | G77: 3.989422804
B78: Name 68 | C78: 0.025 | D78: -1.959963985 | E78: 0 | F78: 10 | G78: 3.989422804
B79: Name 69 | C79: 0.03333333333 | D79: -1.833914636 | E79: 0 | F79: 10 | G79: 3.989422804
B80: Name 70 | C80: 0.04166666667 | D80: -1.731664396 | E80: 0 | F80: 10 | G80: 3.989422804
B81: Name 71 | C81: 0.008333333333 | D81: -2.3939798 | E81: 0 | F81: 10 | G81: 3.989422804
B82: Name 72 | C82: 0.01666666667 | D82: -2.128045234 | E82: 0 | F82: 10 | G82: 3.989422804
B83: Name 73 | C83: 0.025 | D83: -1.959963985 | E83: 0 | F83: 10 | G83: 3.989422804
B84: Name 74 | C84: 0.03333333333 | D84: -1.833914636 | E84: 0 | F84: 10 | G84: 3.989422804
B85: Name 75 | C85: 0.04166666667 | D85: -1.731664396 | E85: 0 | F85: 10 | G85: 3.989422804
B86: Name 76 | C86: 0.008333333333 | D86: -2.3939798 | E86: 0 | F86: 10 | G86: 3.989422804
B87: Name 77 | C87: 0.01666666667 | D87: -2.128045234 | E87: 0 | F87: 10 | G87: 3.989422804
B88: Name 78 | C88: 0.025 | D88: -1.959963985 | E88: 0 | F88: 10 | G88: 3.989422804
B89: Name 79 | C89: 0.03333333333 | D89: -1.833914636 | E89: 0 | F89: 10 | G89: 3.989422804
B90: Name 80 | C90: 0.04166666667 | D90: -1.731664396 | E90: 0 | F90: 10 | G90: 3.989422804
B91: Name 81 | C91: 0.008333333333 | D91: -2.3939798 | E91: 0 | F91: 10 | G91: 3.989422804
B92: Name 82 | C92: 0.01666666667 | D92: -2.128045234 | E92: 0 | F92: 10 | G92: 3.989422804
B93: Name 83 | C93: 0.025 | D93: -1.959963985 | E93: 0 | F93: 10 | G93: 3.989422804
B94: Name 84 | C94: 0.03333333333 | D94: -1.833914636 | E94: 0 | F94: 10 | G94: 3.989422804
B95: Name 85 | C95: 0.04166666667 | D95: -1.731664396 | E95: 0 | F95: 10 | G95: 3.989422804
B96: Name 86 | C96: 0.008333333333 | D96: -2.3939798 | E96: 0 | F96: 10 | G96: 3.989422804
B97: Name 87 | C97: 0.01666666667 | D97: -2.128045234 | E97: 0 | F97: 10 | G97: 3.989422804
B98: Name 88 | C98: 0.025 | D98: -1.959963985 | E98: 0 | F98: 10 | G98: 3.989422804
B99: Name 89 | C99: 0.03333333333 | D99: -1.833914636 | E99: 0 | F99: 10 | G99: 3.989422804
B100: Name 90 | C100: 0.04166666667 | D100: -1.731664396 | E100: 0 | F100: 10 | G100: 3.989422804
B101: Name 91 | C101: 0.008333333333 | D101: -2.3939798 | E101: 0 | F101: 10 | G101: 3.989422804
B102: Name 92 | C102: 0.01666666667 | D102: -2.128045234 | E102: 0 | F102: 10 | G102: 3.989422804
B103: Name 93 | C103: 0.025 | D103: -1.959963985 | E103: 0 | F103: 10 | G103: 3.989422804
B104: Name 94 | C104: 0.03333333333 | D104: -1.833914636 | E104: 0 | F104: 10 | G104: 3.989422804
B105: Name 95 | C105: 0.04166666667 | D105: -1.731664396 | E105: 0 | F105: 10 | G105: 3.989422804
B106: Name 96 | C106: 0.008333333333 | D106: -2.3939798 | E106: 0 | F106: 10 | G106: 3.989422804
B107: Name 97 | C107: 0.01666666667 | D107: -2.128045234 | E107: 0 | F107: 10 | G107: 3.989422804
B108: Name 98 | C108: 0.025 | D108: -1.959963985 | E108: 0 | F108: 10 | G108: 3.989422804
B109: Name 99 | C109: 0.03333333333 | D109: -1.833914636 | E109: 0 | F109: 10 | G109: 3.989422804
B110: Name 100 | C110: 0.04166666667 | D110: -1.731664396 | E110: 0 | F110: 10 | G110: 3.989422804
B111: Name 101 | C111: 0.008333333333 | D111: -2.3939798 | E111: 0 | F111: 10 | G111: 3.989422804
B112: Name 102 | C112: 0.01666666667 | D112: -2.128045234 | E112: 0 | F112: 10 | G112: 3.989422804
B113: Name 103 | C113: 0.025 | D113: -1.959963985 | E113: 0 | F113: 10 | G113: 3.989422804
B114: Name 104 | C114: 0.03333333333 | D114: -1.833914636 | E114: 0 | F114: 10 | G114: 3.989422804
B115: Name 105 | C115: 0.04166666667 | D115: -1.731664396 | E115: 0 | F115: 10 | G115: 3.989422804
B116: Name 106 | C116: 0.008333333333 | D116: -2.3939798 | E116: 0 | F116: 10 | G116: 3.989422804
B117: Name 107 | C117: 0.01666666667 | D117: -2.128045234 | E117: 0 | F117: 10 | G117: 3.989422804
B118: Name 108 | C118: 0.025 | D118: -1.959963985 | E118: 0 | F118: 10 | G118: 3.989422804
B119: Name 109 | C119: 0.03333333333 | D119: -1.833914636 | E119: 0 | F119: 10 | G119: 3.989422804
B120: Name 110 | C120: 0.04166666667 | D120: -1.731664396 | E120: 0 | F120: 10 | G120: 3.989422804
B121: Name 111 | C121: 0.008333333333 | D121: -2.3939798 | E121: 0 | F121: 10 | G121: 3.989422804
B122: Name 112 | C122: 0.01666666667 | D122: -2.128045234 | E122: 0 | F122: 10 | G122: 3.989422804
B123: Name 113 | C123: 0.025 | D123: -1.959963985 | E123: 0 | F123: 10 | G123: 3.989422804
B124: Name 114 | C124: 0.03333333333 | D124: -1.833914636 | E124: 0 | F124: 10 | G124: 3.989422804
B125: Name 115 | C125: 0.04166666667 | D125: -1.731664396 | E125: 0 | F125: 10 | G125: 3.989422804
B126: Name 116 | C126: 0.008333333333 | D126: -2.3939798 | E126: 0 | F126: 10 | G126: 3.989422804
B127: Name 117 | C127: 0.01666666667 | D127: -2.128045234 | E127: 0 | F127: 10 | G127: 3.989422804
B128: Name 118 | C128: 0.025 | D128: -1.959963985 | E128: 0 | F128: 10 | G128: 3.989422804
B129: Name 119 | C129: 0.03333333333 | D129: -1.833914636 | E129: 0 | F129: 10 | G129: 3.989422804
B130: Name 120 | C130: 0.04166666667 | D130: -1.731664396 | E130: 0 | F130: 10 | G130: 3.989422804
B131: Name 121 | C131: 0.008333333333 | D131: -2.3939798 | E131: 0 | F131: 10 | G131: 3.989422804
B132: Name 122 | C132: 0.01666666667 | D132: -2.128045234 | E132: 0 | F132: 10 | G132: 3.989422804
B133: Name 123 | C133: 0.025 | D133: -1.959963985 | E133: 0 | F133: 10 | G133: 3.989422804
B134: Name 124 | C134: 0.03333333333 | D134: -1.833914636 | E134: 0 | F134: 10 | G134: 3.989422804
B135: Name 125 | C135: 0.04166666667 | D135: -1.731664396 | E135: 0 | F135: 10 | G135: 3.989422804
B136: Name 126 | C136: 0.008333333333 | D136: -2.3939798 | E136: 0 | F136: 10 | G136: 3.989422804
B137: Name 127 | C137: 0.01666666667 | D137: -2.128045234 | E137: 0 | F137: 10 | G137: 3.989422804
B138: Name 128 | C138: 0.025 | D138: -1.959963985 | E138: 0 | F138: 10 | G138: 3.989422804
B139: Name 129 | C139: 0.03333333333 | D139: -1.833914636 | E139: 0 | F139: 10 | G139: =(E139*NORMSDIST(E139/F139)+F139*NORMDIST(E139/F139,0,1,FALSE()))*Alpha -> 3.989422804
B140: Name 130 | C140: 0.04166666667 | D140: =NORMSINV(C140) -> -1.731664396 | E140: 0 | F140: 10 | G140: 3.989422804
B141: Name 131 | C141: 0.008333333333 | D141: -2.3939798 | E141: 0 | F141: 10 | G141: 3.989422804
B142: Name 132 | C142: 0.01666666667 | D142: -2.128045234 | E142: 0 | F142: 10 | G142: 3.989422804
B143: Name 133 | C143: 0.025 | D143: -1.959963985 | E143: 0 | F143: 10 | G143: 3.989422804
B144: Name 134 | C144: 0.03333333333 | D144: -1.833914636 | E144: 0 | F144: 10 | G144: 3.989422804
B145: Name 135 | C145: 0.04166666667 | D145: -1.731664396 | E145: 0 | F145: 10 | G145: 3.989422804
B146: Name 136 | C146: 0.008333333333 | D146: -2.3939798 | E146: 0 | F146: 10 | G146: 3.989422804
B147: Name 137 | C147: 0.01666666667 | D147: -2.128045234 | E147: 0 | F147: 10 | G147: 3.989422804
B148: Name 138 | C148: 0.025 | D148: -1.959963985 | E148: 0 | F148: 10 | G148: 3.989422804
B149: Name 139 | C149: 0.03333333333 | D149: -1.833914636 | E149: 0 | F149: 10 | G149: 3.989422804
B150: Name 140 | C150: 0.04166666667 | D150: -1.731664396 | E150: 0 | F150: 10 | G150: 3.989422804
B151: Name 141 | C151: 0.008333333333 | D151: -2.3939798 | E151: 0 | F151: 10 | G151: 3.989422804
B152: Name 142 | C152: 0.01666666667 | D152: -2.128045234 | E152: 0 | F152: 10 | G152: 3.989422804
B153: Name 143 | C153: 0.025 | D153: -1.959963985 | E153: 0 | F153: 10 | G153: 3.989422804
B154: Name 144 | C154: 0.03333333333 | D154: -1.833914636 | E154: 0 | F154: 10 | G154: 3.989422804
B155: Name 145 | C155: 0.04166666667 | D155: -1.731664396 | E155: 0 | F155: 10 | G155: 3.989422804
B156: Name 146 | C156: 0.008333333333 | D156: -2.3939798 | E156: 0 | F156: 10 | G156: 3.989422804
B157: Name 147 | C157: 0.01666666667 | D157: -2.128045234 | E157: 0 | F157: 10 | G157: 3.989422804
B158: Name 148 | C158: 0.025 | D158: -1.959963985 | E158: 0 | F158: 10 | G158: 3.989422804
B159: Name 149 | C159: 0.03333333333 | D159: -1.833914636 | E159: 0 | F159: 10 | G159: 3.989422804
B160: Name 150 | C160: 0.04166666667 | D160: -1.731664396 | E160: 0 | F160: 10 | G160: 3.989422804
B161: Name 151 | C161: 0.008333333333 | D161: -2.3939798 | E161: 0 | F161: 10 | G161: 3.989422804
B162: Name 152 | C162: 0.01666666667 | D162: -2.128045234 | E162: 0 | F162: 10 | G162: 3.989422804
B163: Name 153 | C163: 0.025 | D163: -1.959963985 | E163: 0 | F163: 10 | G163: 3.989422804
B164: Name 154 | C164: 0.03333333333 | D164: -1.833914636 | E164: 0 | F164: 10 | G164: 3.989422804
B165: Name 155 | C165: 0.04166666667 | D165: -1.731664396 | E165: 0 | F165: 10 | G165: 3.989422804
B166: Name 156 | C166: 0.008333333333 | D166: -2.3939798 | E166: 0 | F166: 10 | G166: 3.989422804
B167: Name 157 | C167: 0.01666666667 | D167: -2.128045234 | E167: 0 | F167: 10 | G167: 3.989422804
B168: Name 158 | C168: 0.025 | D168: -1.959963985 | E168: 0 | F168: 10 | G168: 3.989422804
B169: Name 159 | C169: 0.03333333333 | D169: -1.833914636 | E169: 0 | F169: 10 | G169: 3.989422804
B170: Name 160 | C170: 0.04166666667 | D170: -1.731664396 | E170: 0 | F170: 10 | G170: 3.989422804
B171: Name 161 | C171: 0.008333333333 | D171: -2.3939798 | E171: 0 | F171: 10 | G171: 3.989422804
B172: Name 162 | C172: 0.01666666667 | D172: -2.128045234 | E172: 0 | F172: 10 | G172: 3.989422804
B173: Name 163 | C173: 0.025 | D173: -1.959963985 | E173: 0 | F173: 10 | G173: 3.989422804
B174: Name 164 | C174: 0.03333333333 | D174: -1.833914636 | E174: 0 | F174: 10 | G174: 3.989422804
B175: Name 165 | C175: 0.04166666667 | D175: -1.731664396 | E175: 0 | F175: 10 | G175: 3.989422804
B176: Name 166 | C176: 0.008333333333 | D176: -2.3939798 | E176: 0 | F176: 10 | G176: 3.989422804
B177: Name 167 | C177: 0.01666666667 | D177: -2.128045234 | E177: 0 | F177: 10 | G177: 3.989422804
B178: Name 168 | C178: 0.025 | D178: -1.959963985 | E178: 0 | F178: 10 | G178: 3.989422804
B179: Name 169 | C179: 0.03333333333 | D179: -1.833914636 | E179: 0 | F179: 10 | G179: 3.989422804
B180: Name 170 | C180: 0.04166666667 | D180: -1.731664396 | E180: 0 | F180: 10 | G180: 3.989422804
B181: Name 171 | C181: 0.008333333333 | D181: -2.3939798 | E181: 0 | F181: 10 | G181: 3.989422804
B182: Name 172 | C182: 0.01666666667 | D182: -2.128045234 | E182: 0 | F182: 10 | G182: 3.989422804
B183: Name 173 | C183: 0.025 | D183: -1.959963985 | E183: 0 | F183: 10 | G183: 3.989422804
B184: Name 174 | C184: 0.03333333333 | D184: -1.833914636 | E184: 0 | F184: 10 | G184: 3.989422804
B185: Name 175 | C185: 0.04166666667 | D185: -1.731664396 | E185: 0 | F185: 10 | G185: 3.989422804
B186: Name 176 | C186: 0.008333333333 | D186: -2.3939798 | E186: 0 | F186: 10 | G186: 3.989422804
B187: Name 177 | C187: 0.01666666667 | D187: -2.128045234 | E187: 0 | F187: 10 | G187: 3.989422804
B188: Name 178 | C188: 0.025 | D188: -1.959963985 | E188: 0 | F188: 10 | G188: 3.989422804
B189: Name 179 | C189: 0.03333333333 | D189: -1.833914636 | E189: 0 | F189: 10 | G189: 3.989422804
B190: Name 180 | C190: 0.04166666667 | D190: -1.731664396 | E190: 0 | F190: 10 | G190: 3.989422804
B191: Name 181 | C191: 0.008333333333 | D191: -2.3939798 | E191: 0 | F191: 10 | G191: 3.989422804
B192: Name 182 | C192: 0.01666666667 | D192: -2.128045234 | E192: 0 | F192: 10 | G192: 3.989422804
B193: Name 183 | C193: 0.025 | D193: -1.959963985 | E193: 0 | F193: 10 | G193: 3.989422804
B194: Name 184 | C194: 0.03333333333 | D194: -1.833914636 | E194: 0 | F194: 10 | G194: 3.989422804
B195: Name 185 | C195: 0.04166666667 | D195: -1.731664396 | E195: 0 | F195: 10 | G195: 3.989422804
B196: Name 186 | C196: 0.008333333333 | D196: -2.3939798 | E196: 0 | F196: 10 | G196: 3.989422804
B197: Name 187 | C197: 0.01666666667 | D197: -2.128045234 | E197: 0 | F197: 10 | G197: 3.989422804
B198: Name 188 | C198: 0.025 | D198: -1.959963985 | E198: 0 | F198: 10 | G198: 3.989422804
B199: Name 189 | C199: 0.03333333333 | D199: -1.833914636 | E199: 0 | F199: 10 | G199: 3.989422804
B200: Name 190 | C200: 0.04166666667 | D200: -1.731664396 | E200: 0 | F200: 10 | G200: 3.989422804
B201: Name 191 | C201: 0.008333333333 | D201: -2.3939798 | E201: 0 | F201: 10 | G201: 3.989422804
B202: Name 192 | C202: 0.01666666667 | D202: -2.128045234 | E202: 0 | F202: 10 | G202: 3.989422804
B203: Name 193 | C203: 0.025 | D203: -1.959963985 | E203: 0 | F203: 10 | G203: =(E203*NORMSDIST(E203/F203)+F203*NORMDIST(E203/F203,0,1,FALSE()))*Alpha -> 3.989422804
B204: Name 194 | C204: 0.03333333333 | D204: =NORMSINV(C204) -> -1.833914636 | E204: 0 | F204: 10 | G204: 3.989422804
B205: Name 195 | C205: 0.04166666667 | D205: -1.731664396 | E205: 0 | F205: 10 | G205: 3.989422804
B206: Name 196 | C206: 0.008333333333 | D206: -2.3939798 | E206: 0 | F206: 10 | G206: 3.989422804
B207: Name 197 | C207: 0.01666666667 | D207: -2.128045234 | E207: 0 | F207: 10 | G207: 3.989422804
B208: Name 198 | C208: 0.025 | D208: -1.959963985 | E208: 0 | F208: 10 | G208: 3.989422804
... 302 more rows

Sheet Spreadsheet8.2b
A1: 1
K9: =MAX(K12:K50011) -> 215.4288314 | L9: =MAX(L12:L50011) -> 266.6345271
B10: Simulation Parameters | F10: Loss distribution | H10: Exceedance probabilities | K10: Simulation Output
B11: Num Simulations | C11: 50000 | F11: EE Approx | G11: Actual | H11: EE Approx | I11: Actual | K11: EPE | L11: Actual
B12: Seed | C12: 88888888 | E12: 0 | F12: =MAX(0.0000000001,COUNTIF(OFFSET(K12,0,0,MCSims,1),"=0")/MCSims) -> 0.36616 | G12: =MAX(0.0000000001, COUNTIF(OFFSET(L12,0,0,MCSims,1),"=0")/MCSims) -> 0.51414 | H12: =F12+H13 -> 1.00000002 | I12: =G12+I13 -> 0.9999600073 | J12: 1 | K12: 0 | L12: 0
B13: Confidence Level | C13: 0.999 | E13: =E12+NumNames/100 -> 1 | F13: =MAX(0.0000000001, SUM(IF(OFFSET($K$12,0,0,MCSims,1)>E12,IF(OFFSET($K$12,0,0,MCSims,1)<=E13,1,0),0))/MCSims) -> 1e-10 | G13: =MAX(0.0000000001, SUM(IF(OFFSET($L$12,0,0,MCSims,1)>E12,IF(OFFSET($L$12,0,0,MCSims,1)<=E13,1,0),0))/MCSims) -> 0.01778 | H13: =F13+H14 -> 0.6338400202 | I13: =G13+I14 -> 0.4858200073 | K13: 0 | L13: 0
E14: 2 | F14: =MAX(0.0000000001, SUM(IF(OFFSET($K$12,0,0,MCSims,1)>E13,IF(OFFSET($K$12,0,0,MCSims,1)<=E14,1,0),0))/MCSims) -> 1e-10 | G14: =MAX(0.0000000001, SUM(IF(OFFSET($L$12,0,0,MCSims,1)>E13,IF(OFFSET($L$12,0,0,MCSims,1)<=E14,1,0),0))/MCSims) -> 0.01686 | H14: =F14+H15 -> 0.6338400201 | I14: =G14+I15 -> 0.4680400073 | K14: 7.978845608 | L14: 5.79208536
E15: 3 | F15: =MAX(0.0000000001, SUM(IF(OFFSET($K$12,0,0,MCSims,1)>E14,IF(OFFSET($K$12,0,0,MCSims,1)<=E15,1,0),0))/MCSims) -> 1e-10 | G15: =MAX(0.0000000001, SUM(IF(OFFSET($L$12,0,0,MCSims,1)>E14,IF(OFFSET($L$12,0,0,MCSims,1)<=E15,1,0),0))/MCSims) -> 0.01902 | H15: =F15+H16 -> 0.63384002 | I15: 0.4511800073 | K15: 0 | L15: 0
E16: 4 | F16: =MAX(0.0000000001, SUM(IF(OFFSET($K$12,0,0,MCSims,1)>E15,IF(OFFSET($K$12,0,0,MCSims,1)<=E16,1,0),0))/MCSims) -> 0.19928 | G16: =MAX(0.0000000001, SUM(IF(OFFSET($L$12,0,0,MCSims,1)>E15,IF(OFFSET($L$12,0,0,MCSims,1)<=E16,1,0),0))/MCSims) -> 0.01862 | H16: 0.6338400199 | I16: 0.4321600073 | K16: 0 | L16: 0
E17: 5 | F17: =MAX(0.0000000001, SUM(IF(OFFSET($K$12,0,0,MCSims,1)>E16,IF(OFFSET($K$12,0,0,MCSims,1)<=E17,1,0),0))/MCSims) -> 1e-10 | G17: =MAX(0.0000000001, SUM(IF(OFFSET($L$12,0,0,MCSims,1)>E16,IF(OFFSET($L$12,0,0,MCSims,1)<=E17,1,0),0))/MCSims) -> 0.01754 | H17: 0.4345600199 | I17: 0.4135400073 | K17: 3.989422804 | L17: 5.60280944
B18: Calculation | E18: 6 | F18: =MAX(0.0000000001, SUM(IF(OFFSET($K$12,0,0,MCSims,1)>E17,IF(OFFSET($K$12,0,0,MCSims,1)<=E18,1,0),0))/MCSims) -> 1e-10 | G18: =MAX(0.0000000001, SUM(IF(OFFSET($L$12,0,0,MCSims,1)>E17,IF(OFFSET($L$12,0,0,MCSims,1)<=E18,1,0),0))/MCSims) -> 0.01904 | H18: 0.4345600198 | I18: 0.3960000073 | K18: 0 | L18: 0
B19: Unexpected loss (EE) | C19: =PERCENTILE(OFFSET(K12,0,0,MCSims,1),ConfidenceAlpha) -> 127.6615297 | E19: 7 | F19: =MAX(0.0000000001, SUM(IF(OFFSET($K$12,0,0,MCSims,1)>E18,IF(OFFSET($K$12,0,0,MCSims,1)<=E19,1,0),0))/MCSims) -> 1e-10 | G19: =MAX(0.0000000001, SUM(IF(OFFSET($L$12,0,0,MCSims,1)>E18,IF(OFFSET($L$12,0,0,MCSims,1)<=E19,1,0),0))/MCSims) -> 0.01784 | H19: 0.4345600197 | I19: 0.3769600073 | K19: 3.989422804 | L19: 0
B20: Unexpected loss (Actual) | C20: =PERCENTILE(OFFSET(L12,0,0,MCSims,1),ConfidenceAlpha) -> 145.3778032 | E20: 8 | F20: =MAX(0.0000000001, SUM(IF(OFFSET($K$12,0,0,MCSims,1)>E19,IF(OFFSET($K$12,0,0,MCSims,1)<=E20,1,0),0))/MCSims) -> 0.12264 | G20: =MAX(0.0000000001, SUM(IF(OFFSET($L$12,0,0,MCSims,1)>E19,IF(OFFSET($L$12,0,0,MCSims,1)<=E20,1,0),0))/MCSims) -> 0.0174 | H20: 0.4345600196 | I20: 0.3591200073 | K20: 0 | L20: 0
B21: Estimated Alpha | C21: =C20/C19 -> 1.13877535 | E21: 9 | F21: =MAX(0.0000000001, SUM(IF(OFFSET($K$12,0,0,MCSims,1)>E20,IF(OFFSET($K$12,0,0,MCSims,1)<=E21,1,0),0))/MCSims) -> 1e-10 | G21: =MAX(0.0000000001, SUM(IF(OFFSET($L$12,0,0,MCSims,1)>E20,IF(OFFSET($L$12,0,0,MCSims,1)<=E21,1,0),0))/MCSims) -> 0.01682 | H21: 0.3119200196 | I21: 0.3417200073 | K21: 75.79903328 | L21: 77.84443634
E22: 10 | F22: =MAX(0.0000000001, SUM(IF(OFFSET($K$12,0,0,MCSims,1)>E21,IF(OFFSET($K$12,0,0,MCSims,1)<=E22,1,0),0))/MCSims) -> 1e-10 | G22: =MAX(0.0000000001, SUM(IF(OFFSET($L$12,0,0,MCSims,1)>E21,IF(OFFSET($L$12,0,0,MCSims,1)<=E22,1,0),0))/MCSims) -> 0.01692 | H22: 0.3119200195 | I22: 0.3249000073 | K22: 3.989422804 | L22: 0.1575094524
E23: 11 | F23: =MAX(0.0000000001, SUM(IF(OFFSET($K$12,0,0,MCSims,1)>E22,IF(OFFSET($K$12,0,0,MCSims,1)<=E23,1,0),0))/MCSims) -> 1e-10 | G23: =MAX(0.0000000001, SUM(IF(OFFSET($L$12,0,0,MCSims,1)>E22,IF(OFFSET($L$12,0,0,MCSims,1)<=E23,1,0),0))/MCSims) -> 0.01692 | H23: 0.3119200194 | I23: 0.3079800073 | K23: 15.95769122 | L23: 19.92995139
E24: 12 | F24: =MAX(0.0000000001, SUM(IF(OFFSET($K$12,0,0,MCSims,1)>E23,IF(OFFSET($K$12,0,0,MCSims,1)<=E24,1,0),0))/MCSims) -> 0.07956 | G24: =MAX(0.0000000001, SUM(IF(OFFSET($L$12,0,0,MCSims,1)>E23,IF(OFFSET($L$12,0,0,MCSims,1)<=E24,1,0),0))/MCSims) -> 0.01496 | H24: 0.3119200193 | I24: 0.2910600073 | K24: 0 | L24: 0
E25: 13 | F25: =MAX(0.0000000001, SUM(IF(OFFSET($K$12,0,0,MCSims,1)>E24,IF(OFFSET($K$12,0,0,MCSims,1)<=E25,1,0),0))/MCSims) -> 1e-10 | G25: =MAX(0.0000000001, SUM(IF(OFFSET($L$12,0,0,MCSims,1)>E24,IF(OFFSET($L$12,0,0,MCSims,1)<=E25,1,0),0))/MCSims) -> 0.01456 | H25: 0.2323600193 | I25: 0.2761000073 | K25: 0 | L25: 0
E26: 14 | F26: =MAX(0.0000000001, SUM(IF(OFFSET($K$12,0,0,MCSims,1)>E25,IF(OFFSET($K$12,0,0,MCSims,1)<=E26,1,0),0))/MCSims) -> 1e-10 | G26: =MAX(0.0000000001, SUM(IF(OFFSET($L$12,0,0,MCSims,1)>E25,IF(OFFSET($L$12,0,0,MCSims,1)<=E26,1,0),0))/MCSims) -> 0.01448 | H26: 0.2323600192 | I26: 0.2615400073 | K26: 19.94711402 | L26: 8.664755403
E27: 15 | F27: =MAX(0.0000000001, SUM(IF(OFFSET($K$12,0,0,MCSims,1)>E26,IF(OFFSET($K$12,0,0,MCSims,1)<=E27,1,0),0))/MCSims) -> 1e-10 | G27: =MAX(0.0000000001, SUM(IF(OFFSET($L$12,0,0,MCSims,1)>E26,IF(OFFSET($L$12,0,0,MCSims,1)<=E27,1,0),0))/MCSims) -> 0.01324 | H27: 0.2323600191 | I27: 0.2470600073 | K27: 19.94711402 | L27: 28.05348616
E28: 16 | F28: =MAX(0.0000000001, SUM(IF(OFFSET($K$12,0,0,MCSims,1)>E27,IF(OFFSET($K$12,0,0,MCSims,1)<=E28,1,0),0))/MCSims) -> 0.0552 | G28: =MAX(0.0000000001, SUM(IF(OFFSET($L$12,0,0,MCSims,1)>E27,IF(OFFSET($L$12,0,0,MCSims,1)<=E28,1,0),0))/MCSims) -> 0.01282 | H28: 0.232360019 | I28: 0.2338200073 | K28: 11.96826841 | L28: 24.39115685
E29: 17 | F29: =MAX(0.0000000001, SUM(IF(OFFSET($K$12,0,0,MCSims,1)>E28,IF(OFFSET($K$12,0,0,MCSims,1)<=E29,1,0),0))/MCSims) -> 1e-10 | G29: =MAX(0.0000000001, SUM(IF(OFFSET($L$12,0,0,MCSims,1)>E28,IF(OFFSET($L$12,0,0,MCSims,1)<=E29,1,0),0))/MCSims) -> 0.0119 | H29: 0.177160019 | I29: 0.2210000073 | K29: 35.90480524 | L29: 30.29802183
E30: 18 | F30: =MAX(0.0000000001, SUM(IF(OFFSET($K$12,0,0,MCSims,1)>E29,IF(OFFSET($K$12,0,0,MCSims,1)<=E30,1,0),0))/MCSims) -> 1e-10 | G30: =MAX(0.0000000001, SUM(IF(OFFSET($L$12,0,0,MCSims,1)>E29,IF(OFFSET($L$12,0,0,MCSims,1)<=E30,1,0),0))/MCSims) -> 0.01122 | H30: 0.1771600189 | I30: 0.2091000073 | K30: 11.96826841 | L30: 10.98862257
E31: 19 | F31: =MAX(0.0000000001, SUM(IF(OFFSET($K$12,0,0,MCSims,1)>E30,IF(OFFSET($K$12,0,0,MCSims,1)<=E31,1,0),0))/MCSims) -> 1e-10 | G31: =MAX(0.0000000001, SUM(IF(OFFSET($L$12,0,0,MCSims,1)>E30,IF(OFFSET($L$12,0,0,MCSims,1)<=E31,1,0),0))/MCSims) -> 0.011 | H31: 0.1771600188 | I31: 0.1978800073 | K31: 3.989422804 | L31: 0
E32: 20 | F32: =MAX(0.0000000001, SUM(IF(OFFSET($K$12,0,0,MCSims,1)>E31,IF(OFFSET($K$12,0,0,MCSims,1)<=E32,1,0),0))/MCSims) -> 0.03964 | G32: =MAX(0.0000000001, SUM(IF(OFFSET($L$12,0,0,MCSims,1)>E31,IF(OFFSET($L$12,0,0,MCSims,1)<=E32,1,0),0))/MCSims) -> 0.00874 | H32: 0.1771600187 | I32: 0.1868800073 | K32: 27.92595963 | L32: 16.94790503
E33: 21 | F33: =MAX(0.0000000001, SUM(IF(OFFSET($K$12,0,0,MCSims,1)>E32,IF(OFFSET($K$12,0,0,MCSims,1)<=E33,1,0),0))/MCSims) -> 1e-10 | G33: =MAX(0.0000000001, SUM(IF(OFFSET($L$12,0,0,MCSims,1)>E32,IF(OFFSET($L$12,0,0,MCSims,1)<=E33,1,0),0))/MCSims) -> 0.00932 | H33: 0.1375200187 | I33: 0.1781400073 | K33: 7.978845608 | L33: 17.03769785
E34: 22 | F34: =MAX(0.0000000001, SUM(IF(OFFSET($K$12,0,0,MCSims,1)>E33,IF(OFFSET($K$12,0,0,MCSims,1)<=E34,1,0),0))/MCSims) -> 1e-10 | G34: =MAX(0.0000000001, SUM(IF(OFFSET($L$12,0,0,MCSims,1)>E33,IF(OFFSET($L$12,0,0,MCSims,1)<=E34,1,0),0))/MCSims) -> 0.00872 | H34: 0.1375200186 | I34: 0.1688200073 | K34: 0 | L34: 0
E35: 23 | F35: =MAX(0.0000000001, SUM(IF(OFFSET($K$12,0,0,MCSims,1)>E34,IF(OFFSET($K$12,0,0,MCSims,1)<=E35,1,0),0))/MCSims) -> 1e-10 | G35: =MAX(0.0000000001, SUM(IF(OFFSET($L$12,0,0,MCSims,1)>E34,IF(OFFSET($L$12,0,0,MCSims,1)<=E35,1,0),0))/MCSims) -> 0.00866 | H35: 0.1375200185 | I35: 0.1601000073 | K35: 0 | L35: 0
E36: 24 | F36: =MAX(0.0000000001, SUM(IF(OFFSET($K$12,0,0,MCSims,1)>E35,IF(OFFSET($K$12,0,0,MCSims,1)<=E36,1,0),0))/MCSims) -> 0.02872 | G36: =MAX(0.0000000001, SUM(IF(OFFSET($L$12,0,0,MCSims,1)>E35,IF(OFFSET($L$12,0,0,MCSims,1)<=E36,1,0),0))/MCSims) -> 0.0079 | H36: 0.1375200184 | I36: 0.1514400073 | K36: 3.989422804 | L36: 1.622158348
E37: 25 | F37: =MAX(0.0000000001, SUM(IF(OFFSET($K$12,0,0,MCSims,1)>E36,IF(OFFSET($K$12,0,0,MCSims,1)<=E37,1,0),0))/MCSims) -> 1e-10 | G37: =MAX(0.0000000001, SUM(IF(OFFSET($L$12,0,0,MCSims,1)>E36,IF(OFFSET($L$12,0,0,MCSims,1)<=E37,1,0),0))/MCSims) -> 0.0075 | H37: 0.1088000184 | I37: 0.1435400073 | K37: 7.978845608 | L37: 0
E38: 26 | F38: =MAX(0.0000000001, SUM(IF(OFFSET($K$12,0,0,MCSims,1)>E37,IF(OFFSET($K$12,0,0,MCSims,1)<=E38,1,0),0))/MCSims) -> 1e-10 | G38: =MAX(0.0000000001, SUM(IF(OFFSET($L$12,0,0,MCSims,1)>E37,IF(OFFSET($L$12,0,0,MCSims,1)<=E38,1,0),0))/MCSims) -> 0.007 | H38: 0.1088000183 | I38: 0.1360400073 | K38: 0 | L38: 0
E39: 27 | F39: =MAX(0.0000000001, SUM(IF(OFFSET($K$12,0,0,MCSims,1)>E38,IF(OFFSET($K$12,0,0,MCSims,1)<=E39,1,0),0))/MCSims) -> 1e-10 | G39: =MAX(0.0000000001, SUM(IF(OFFSET($L$12,0,0,MCSims,1)>E38,IF(OFFSET($L$12,0,0,MCSims,1)<=E39,1,0),0))/MCSims) -> 0.00678 | H39: 0.1088000182 | I39: 0.1290400073 | K39: 7.978845608 | L39: 6.254600677
E40: 28 | F40: =MAX(0.0000000001, SUM(IF(OFFSET($K$12,0,0,MCSims,1)>E39,IF(OFFSET($K$12,0,0,MCSims,1)<=E40,1,0),0))/MCSims) -> 0.02326 | G40: =MAX(0.0000000001, SUM(IF(OFFSET($L$12,0,0,MCSims,1)>E39,IF(OFFSET($L$12,0,0,MCSims,1)<=E40,1,0),0))/MCSims) -> 0.00614 | H40: 0.1088000181 | I40: 0.1222600073 | K40: 7.978845608 | L40: 28.7254765
B41: 0.0001 | C41: =C19 -> 127.6615297 | D41: =C20 -> 145.3778032 | E41: 29 | F41: =MAX(0.0000000001, SUM(IF(OFFSET($K$12,0,0,MCSims,1)>E40,IF(OFFSET($K$12,0,0,MCSims,1)<=E41,1,0),0))/MCSims) -> 1e-10 | G41: =MAX(0.0000000001, SUM(IF(OFFSET($L$12,0,0,MCSims,1)>E40,IF(OFFSET($L$12,0,0,MCSims,1)<=E41,1,0),0))/MCSims) -> 0.00598 | H41: 0.0855400181 | I41: 0.1161200073 | K41: 0 | L41: 0
B42: 1 | C42: =C19 -> 127.6615297 | D42: =C20 -> 145.3778032 | E42: 30 | F42: =MAX(0.0000000001, SUM(IF(OFFSET($K$12,0,0,MCSims,1)>E41,IF(OFFSET($K$12,0,0,MCSims,1)<=E42,1,0),0))/MCSims) -> 1e-10 | G42: =MAX(0.0000000001, SUM(IF(OFFSET($L$12,0,0,MCSims,1)>E41,IF(OFFSET($L$12,0,0,MCSims,1)<=E42,1,0),0))/MCSims) -> 0.00556 | H42: 0.085540018 | I42: 0.1101400073 | K42: 3.989422804 | L42: 17.4260603
E43: 31 | F43: =MAX(0.0000000001, SUM(IF(OFFSET($K$12,0,0,MCSims,1)>E42,IF(OFFSET($K$12,0,0,MCSims,1)<=E43,1,0),0))/MCSims) -> 1e-10 | G43: =MAX(0.0000000001, SUM(IF(OFFSET($L$12,0,0,MCSims,1)>E42,IF(OFFSET($L$12,0,0,MCSims,1)<=E43,1,0),0))/MCSims) -> 0.00498 | H43: 0.0855400179 | I43: 0.1045800073 | K43: 0 | L43: 0
E44: 32 | F44: =MAX(0.0000000001, SUM(IF(OFFSET($K$12,0,0,MCSims,1)>E43,IF(OFFSET($K$12,0,0,MCSims,1)<=E44,1,0),0))/MCSims) -> 0.01714 | G44: =MAX(0.0000000001, SUM(IF(OFFSET($L$12,0,0,MCSims,1)>E43,IF(OFFSET($L$12,0,0,MCSims,1)<=E44,1,0),0))/MCSims) -> 0.0048 | H44: 0.0855400178 | I44: 0.0996000073 | K44: 0 | L44: 0
E45: 33 | F45: =MAX(0.0000000001, SUM(IF(OFFSET($K$12,0,0,MCSims,1)>E44,IF(OFFSET($K$12,0,0,MCSims,1)<=E45,1,0),0))/MCSims) -> 1e-10 | G45: =MAX(0.0000000001, SUM(IF(OFFSET($L$12,0,0,MCSims,1)>E44,IF(OFFSET($L$12,0,0,MCSims,1)<=E45,1,0),0))/MCSims) -> 0.00416 | H45: 0.0684000178 | I45: 0.0948000073 | K45: 3.989422804 | L45: 0
E46: 34 | F46: =MAX(0.0000000001, SUM(IF(OFFSET($K$12,0,0,MCSims,1)>E45,IF(OFFSET($K$12,0,0,MCSims,1)<=E46,1,0),0))/MCSims) -> 1e-10 | G46: =MAX(0.0000000001, SUM(IF(OFFSET($L$12,0,0,MCSims,1)>E45,IF(OFFSET($L$12,0,0,MCSims,1)<=E46,1,0),0))/MCSims) -> 0.00436 | H46: 0.0684000177 | I46: 0.0906400073 | K46: 11.96826841 | L46: 16.71910674
E47: 35 | F47: =MAX(0.0000000001, SUM(IF(OFFSET($K$12,0,0,MCSims,1)>E46,IF(OFFSET($K$12,0,0,MCSims,1)<=E47,1,0),0))/MCSims) -> 1e-10 | G47: =MAX(0.0000000001, SUM(IF(OFFSET($L$12,0,0,MCSims,1)>E46,IF(OFFSET($L$12,0,0,MCSims,1)<=E47,1,0),0))/MCSims) -> 0.004 | H47: 0.0684000176 | I47: 0.0862800073 | K47: 7.978845608 | L47: 2.082110659
E48: 36 | F48: =MAX(0.0000000001, SUM(IF(OFFSET($K$12,0,0,MCSims,1)>E47,IF(OFFSET($K$12,0,0,MCSims,1)<=E48,1,0),0))/MCSims) -> 0.0136 | G48: =MAX(0.0000000001, SUM(IF(OFFSET($L$12,0,0,MCSims,1)>E47,IF(OFFSET($L$12,0,0,MCSims,1)<=E48,1,0),0))/MCSims) -> 0.00424 | H48: 0.0684000175 | I48: 0.0822800073 | K48: 7.978845608 | L48: 0
E49: 37 | F49: =MAX(0.0000000001, SUM(IF(OFFSET($K$12,0,0,MCSims,1)>E48,IF(OFFSET($K$12,0,0,MCSims,1)<=E49,1,0),0))/MCSims) -> 1e-10 | G49: =MAX(0.0000000001, SUM(IF(OFFSET($L$12,0,0,MCSims,1)>E48,IF(OFFSET($L$12,0,0,MCSims,1)<=E49,1,0),0))/MCSims) -> 0.00364 | H49: 0.0548000175 | I49: 0.0780400073 | K49: 11.96826841 | L49: 0
E50: 38 | F50: =MAX(0.0000000001, SUM(IF(OFFSET($K$12,0,0,MCSims,1)>E49,IF(OFFSET($K$12,0,0,MCSims,1)<=E50,1,0),0))/MCSims) -> 1e-10 | G50: =MAX(0.0000000001, SUM(IF(OFFSET($L$12,0,0,MCSims,1)>E49,IF(OFFSET($L$12,0,0,MCSims,1)<=E50,1,0),0))/MCSims) -> 0.0033 | H50: 0.0548000174 | I50: 0.0744000073 | K50: 0 | L50: 0
E51: 39 | F51: =MAX(0.0000000001, SUM(IF(OFFSET($K$12,0,0,MCSims,1)>E50,IF(OFFSET($K$12,0,0,MCSims,1)<=E51,1,0),0))/MCSims) -> 1e-10 | G51: =MAX(0.0000000001, SUM(IF(OFFSET($L$12,0,0,MCSims,1)>E50,IF(OFFSET($L$12,0,0,MCSims,1)<=E51,1,0),0))/MCSims) -> 0.00298 | H51: 0.0548000173 | I51: 0.0711000073 | K51: 0 | L51: 0
E52: 40 | F52: =MAX(0.0000000001, SUM(IF(OFFSET($K$12,0,0,MCSims,1)>E51,IF(OFFSET($K$12,0,0,MCSims,1)<=E52,1,0),0))/MCSims) -> 0.0099 | G52: =MAX(0.0000000001, SUM(IF(OFFSET($L$12,0,0,MCSims,1)>E51,IF(OFFSET($L$12,0,0,MCSims,1)<=E52,1,0),0))/MCSims) -> 0.00338 | H52: 0.0548000172 | I52: 0.0681200073 | K52: 7.978845608 | L52: 33.20582151
E53: 41 | F53: =MAX(0.0000000001, SUM(IF(OFFSET($K$12,0,0,MCSims,1)>E52,IF(OFFSET($K$12,0,0,MCSims,1)<=E53,1,0),0))/MCSims) -> 1e-10 | G53: =MAX(0.0000000001, SUM(IF(OFFSET($L$12,0,0,MCSims,1)>E52,IF(OFFSET($L$12,0,0,MCSims,1)<=E53,1,0),0))/MCSims) -> 0.00342 | H53: 0.0449000172 | I53: 0.0647400073 | K53: 3.989422804 | L53: 0
E54: 42 | F54: =MAX(0.0000000001, SUM(IF(OFFSET($K$12,0,0,MCSims,1)>E53,IF(OFFSET($K$12,0,0,MCSims,1)<=E54,1,0),0))/MCSims) -> 1e-10 | G54: =MAX(0.0000000001, SUM(IF(OFFSET($L$12,0,0,MCSims,1)>E53,IF(OFFSET($L$12,0,0,MCSims,1)<=E54,1,0),0))/MCSims) -> 0.00278 | H54: 0.0449000171 | I54: 0.0613200073 | K54: 3.989422804 | L54: 0
E55: 43 | F55: =MAX(0.0000000001, SUM(IF(OFFSET($K$12,0,0,MCSims,1)>E54,IF(OFFSET($K$12,0,0,MCSims,1)<=E55,1,0),0))/MCSims) -> 1e-10 | G55: =MAX(0.0000000001, SUM(IF(OFFSET($L$12,0,0,MCSims,1)>E54,IF(OFFSET($L$12,0,0,MCSims,1)<=E55,1,0),0))/MCSims) -> 0.00294 | H55: 0.044900017 | I55: 0.0585400073 | K55: 11.96826841 | L55: 22.94326078
E56: 44 | F56: =MAX(0.0000000001, SUM(IF(OFFSET($K$12,0,0,MCSims,1)>E55,IF(OFFSET($K$12,0,0,MCSims,1)<=E56,1,0),0))/MCSims) -> 0.00838 | G56: =MAX(0.0000000001, SUM(IF(OFFSET($L$12,0,0,MCSims,1)>E55,IF(OFFSET($L$12,0,0,MCSims,1)<=E56,1,0),0))/MCSims) -> 0.0026 | H56: 0.0449000169 | I56: 0.0556000073 | K56: 3.989422804 | L56: 0
E57: 45 | F57: =MAX(0.0000000001, SUM(IF(OFFSET($K$12,0,0,MCSims,1)>E56,IF(OFFSET($K$12,0,0,MCSims,1)<=E57,1,0),0))/MCSims) -> 1e-10 | G57: =MAX(0.0000000001, SUM(IF(OFFSET($L$12,0,0,MCSims,1)>E56,IF(OFFSET($L$12,0,0,MCSims,1)<=E57,1,0),0))/MCSims) -> 0.00214 | H57: 0.0365200169 | I57: 0.0530000073 | K57: 0 | L57: 0
E58: 46 | F58: =MAX(0.0000000001, SUM(IF(OFFSET($K$12,0,0,MCSims,1)>E57,IF(OFFSET($K$12,0,0,MCSims,1)<=E58,1,0),0))/MCSims) -> 1e-10 | G58: =MAX(0.0000000001, SUM(IF(OFFSET($L$12,0,0,MCSims,1)>E57,IF(OFFSET($L$12,0,0,MCSims,1)<=E58,1,0),0))/MCSims) -> 0.00198 | H58: 0.0365200168 | I58: 0.0508600073 | K58: 0 | L58: 0
E59: 47 | F59: =MAX(0.0000000001, SUM(IF(OFFSET($K$12,0,0,MCSims,1)>E58,IF(OFFSET($K$12,0,0,MCSims,1)<=E59,1,0),0))/MCSims) -> 1e-10 | G59: =MAX(0.0000000001, SUM(IF(OFFSET($L$12,0,0,MCSims,1)>E58,IF(OFFSET($L$12,0,0,MCSims,1)<=E59,1,0),0))/MCSims) -> 0.00202 | H59: 0.0365200167 | I59: 0.0488800073 | K59: 3.989422804 | L59: 19.6403821
E60: 48 | F60: =MAX(0.0000000001, SUM(IF(OFFSET($K$12,0,0,MCSims,1)>E59,IF(OFFSET($K$12,0,0,MCSims,1)<=E60,1,0),0))/MCSims) -> 0.0068 | G60: =MAX(0.0000000001, SUM(IF(OFFSET($L$12,0,0,MCSims,1)>E59,IF(OFFSET($L$12,0,0,MCSims,1)<=E60,1,0),0))/MCSims) -> 0.00212 | H60: 0.0365200166 | I60: 0.0468600073 | K60: 0 | L60: 0
E61: 49 | F61: =MAX(0.0000000001, SUM(IF(OFFSET($K$12,0,0,MCSims,1)>E60,IF(OFFSET($K$12,0,0,MCSims,1)<=E61,1,0),0))/MCSims) -> 1e-10 | G61: =MAX(0.0000000001, SUM(IF(OFFSET($L$12,0,0,MCSims,1)>E60,IF(OFFSET($L$12,0,0,MCSims,1)<=E61,1,0),0))/MCSims) -> 0.00166 | H61: 0.0297200166 | I61: 0.0447400073 | K61: 15.95769122 | L61: 1.063060324
E62: 50 | F62: =MAX(0.0000000001, SUM(IF(OFFSET($K$12,0,0,MCSims,1)>E61,IF(OFFSET($K$12,0,0,MCSims,1)<=E62,1,0),0))/MCSims) -> 1e-10 | G62: =MAX(0.0000000001, SUM(IF(OFFSET($L$12,0,0,MCSims,1)>E61,IF(OFFSET($L$12,0,0,MCSims,1)<=E62,1,0),0))/MCSims) -> 0.00184 | H62: 0.0297200165 | I62: 0.0430800073 | K62: 0 | L62: 0
E63: 51 | F63: =MAX(0.0000000001, SUM(IF(OFFSET($K$12,0,0,MCSims,1)>E62,IF(OFFSET($K$12,0,0,MCSims,1)<=E63,1,0),0))/MCSims) -> 1e-10 | G63: =MAX(0.0000000001, SUM(IF(OFFSET($L$12,0,0,MCSims,1)>E62,IF(OFFSET($L$12,0,0,MCSims,1)<=E63,1,0),0))/MCSims) -> 0.00146 | H63: 0.0297200164 | I63: 0.0412400073 | K63: 11.96826841 | L63: 16.70246371
E64: 52 | F64: =MAX(0.0000000001, SUM(IF(OFFSET($K$12,0,0,MCSims,1)>E63,IF(OFFSET($K$12,0,0,MCSims,1)<=E64,1,0),0))/MCSims) -> 0.00512 | G64: =MAX(0.0000000001, SUM(IF(OFFSET($L$12,0,0,MCSims,1)>E63,IF(OFFSET($L$12,0,0,MCSims,1)<=E64,1,0),0))/MCSims) -> 0.00134 | H64: 0.0297200163 | I64: 0.0397800073 | K64: 0 | L64: 0
E65: 53 | F65: =MAX(0.0000000001, SUM(IF(OFFSET($K$12,0,0,MCSims,1)>E64,IF(OFFSET($K$12,0,0,MCSims,1)<=E65,1,0),0))/MCSims) -> 1e-10 | G65: =MAX(0.0000000001, SUM(IF(OFFSET($L$12,0,0,MCSims,1)>E64,IF(OFFSET($L$12,0,0,MCSims,1)<=E65,1,0),0))/MCSims) -> 0.0015 | H65: 0.0246000163 | I65: 0.0384400073 | K65: 3.989422804 | L65: 5.920995278
E66: 54 | F66: =MAX(0.0000000001, SUM(IF(OFFSET($K$12,0,0,MCSims,1)>E65,IF(OFFSET($K$12,0,0,MCSims,1)<=E66,1,0),0))/MCSims) -> 1e-10 | G66: =MAX(0.0000000001, SUM(IF(OFFSET($L$12,0,0,MCSims,1)>E65,IF(OFFSET($L$12,0,0,MCSims,1)<=E66,1,0),0))/MCSims) -> 0.0016 | H66: 0.0246000162 | I66: 0.0369400073 | K66: 0 | L66: 0
E67: 55 | F67: =MAX(0.0000000001, SUM(IF(OFFSET($K$12,0,0,MCSims,1)>E66,IF(OFFSET($K$12,0,0,MCSims,1)<=E67,1,0),0))/MCSims) -> 1e-10 | G67: =MAX(0.0000000001, SUM(IF(OFFSET($L$12,0,0,MCSims,1)>E66,IF(OFFSET($L$12,0,0,MCSims,1)<=E67,1,0),0))/MCSims) -> 0.00098 | H67: 0.0246000161 | I67: 0.0353400073 | K67: 0 | L67: 0
E68: 56 | F68: =MAX(0.0000000001, SUM(IF(OFFSET($K$12,0,0,MCSims,1)>E67,IF(OFFSET($K$12,0,0,MCSims,1)<=E68,1,0),0))/MCSims) -> 0.00376 | G68: =MAX(0.0000000001, SUM(IF(OFFSET($L$12,0,0,MCSims,1)>E67,IF(OFFSET($L$12,0,0,MCSims,1)<=E68,1,0),0))/MCSims) -> 0.00138 | H68: 0.024600016 | I68: 0.0343600073 | K68: 15.95769122 | L68: 27.6709503
E69: 57 | F69: =MAX(0.0000000001, SUM(IF(OFFSET($K$12,0,0,MCSims,1)>E68,IF(OFFSET($K$12,0,0,MCSims,1)<=E69,1,0),0))/MCSims) -> 1e-10 | G69: =MAX(0.0000000001, SUM(IF(OFFSET($L$12,0,0,MCSims,1)>E68,IF(OFFSET($L$12,0,0,MCSims,1)<=E69,1,0),0))/MCSims) -> 0.00172 | H69: 0.020840016 | I69: 0.0329800073 | K69: 0 | L69: 0
E70: 58 | F70: =MAX(0.0000000001, SUM(IF(OFFSET($K$12,0,0,MCSims,1)>E69,IF(OFFSET($K$12,0,0,MCSims,1)<=E70,1,0),0))/MCSims) -> 1e-10 | G70: =MAX(0.0000000001, SUM(IF(OFFSET($L$12,0,0,MCSims,1)>E69,IF(OFFSET($L$12,0,0,MCSims,1)<=E70,1,0),0))/MCSims) -> 0.00108 | H70: 0.0208400159 | I70: 0.0312600073 | K70: 3.989422804 | L70: 0
E71: 59 | F71: =MAX(0.0000000001, SUM(IF(OFFSET($K$12,0,0,MCSims,1)>E70,IF(OFFSET($K$12,0,0,MCSims,1)<=E71,1,0),0))/MCSims) -> 1e-10 | G71: =MAX(0.0000000001, SUM(IF(OFFSET($L$12,0,0,MCSims,1)>E70,IF(OFFSET($L$12,0,0,MCSims,1)<=E71,1,0),0))/MCSims) -> 0.00132 | H71: 0.0208400158 | I71: 0.0301800073 | K71: 0 | L71: 0
E72: 60 | F72: =MAX(0.0000000001, SUM(IF(OFFSET($K$12,0,0,MCSims,1)>E71,IF(OFFSET($K$12,0,0,MCSims,1)<=E72,1,0),0))/MCSims) -> 0.00404 | G72: =MAX(0.0000000001, SUM(IF(OFFSET($L$12,0,0,MCSims,1)>E71,IF(OFFSET($L$12,0,0,MCSims,1)<=E72,1,0),0))/MCSims) -> 0.0009 | H72: 0.0208400157 | I72: 0.0288600073 | K72: 19.94711402 | L72: 38.32530521
E73: 61 | F73: =MAX(0.0000000001, SUM(IF(OFFSET($K$12,0,0,MCSims,1)>E72,IF(OFFSET($K$12,0,0,MCSims,1)<=E73,1,0),0))/MCSims) -> 1e-10 | G73: =MAX(0.0000000001, SUM(IF(OFFSET($L$12,0,0,MCSims,1)>E72,IF(OFFSET($L$12,0,0,MCSims,1)<=E73,1,0),0))/MCSims) -> 0.00108 | H73: 0.0168000157 | I73: 0.0279600073 | K73: 7.978845608 | L73: 14.41971716
E74: 62 | F74: =MAX(0.0000000001, SUM(IF(OFFSET($K$12,0,0,MCSims,1)>E73,IF(OFFSET($K$12,0,0,MCSims,1)<=E74,1,0),0))/MCSims) -> 1e-10 | G74: =MAX(0.0000000001, SUM(IF(OFFSET($L$12,0,0,MCSims,1)>E73,IF(OFFSET($L$12,0,0,MCSims,1)<=E74,1,0),0))/MCSims) -> 0.0009 | H74: 0.0168000156 | I74: 0.0268800073 | K74: 115.6932613 | L74: 121.8027619
E75: 63 | F75: =MAX(0.0000000001, SUM(IF(OFFSET($K$12,0,0,MCSims,1)>E74,IF(OFFSET($K$12,0,0,MCSims,1)<=E75,1,0),0))/MCSims) -> 1e-10 | G75: =MAX(0.0000000001, SUM(IF(OFFSET($L$12,0,0,MCSims,1)>E74,IF(OFFSET($L$12,0,0,MCSims,1)<=E75,1,0),0))/MCSims) -> 0.00104 | H75: 0.0168000155 | I75: 0.0259800073 | K75: 0 | L75: 0
E76: 64 | F76: =MAX(0.0000000001, SUM(IF(OFFSET($K$12,0,0,MCSims,1)>E75,IF(OFFSET($K$12,0,0,MCSims,1)<=E76,1,0),0))/MCSims) -> 0.00286 | G76: =MAX(0.0000000001, SUM(IF(OFFSET($L$12,0,0,MCSims,1)>E75,IF(OFFSET($L$12,0,0,MCSims,1)<=E76,1,0),0))/MCSims) -> 0.0011 | H76: 0.0168000154 | I76: 0.0249400073 | K76: 3.989422804 | L76: 6.148447323
E77: =E76+NumNames/100 -> 65 | F77: =MAX(0.0000000001, SUM(IF(OFFSET($K$12,0,0,MCSims,1)>E76,IF(OFFSET($K$12,0,0,MCSims,1)<=E77,1,0),0))/MCSims) -> 1e-10 | G77: =MAX(0.0000000001, SUM(IF(OFFSET($L$12,0,0,MCSims,1)>E76,IF(OFFSET($L$12,0,0,MCSims,1)<=E77,1,0),0))/MCSims) -> 0.00112 | H77: 0.0139400154 | I77: 0.0238400073 | K77: 7.978845608 | L77: 3.798579861
E78: 66 | F78: =MAX(0.0000000001, SUM(IF(OFFSET($K$12,0,0,MCSims,1)>E77,IF(OFFSET($K$12,0,0,MCSims,1)<=E78,1,0),0))/MCSims) -> 1e-10 | G78: =MAX(0.0000000001, SUM(IF(OFFSET($L$12,0,0,MCSims,1)>E77,IF(OFFSET($L$12,0,0,MCSims,1)<=E78,1,0),0))/MCSims) -> 0.001 | H78: =F78+H79 -> 0.0139400153 | I78: =G78+I79 -> 0.0227200073 | K78: 0 | L78: 0
E79: 67 | F79: =MAX(0.0000000001, SUM(IF(OFFSET($K$12,0,0,MCSims,1)>E78,IF(OFFSET($K$12,0,0,MCSims,1)<=E79,1,0),0))/MCSims) -> 1e-10 | G79: =MAX(0.0000000001, SUM(IF(OFFSET($L$12,0,0,MCSims,1)>E78,IF(OFFSET($L$12,0,0,MCSims,1)<=E79,1,0),0))/MCSims) -> 0.00074 | H79: 0.0139400152 | I79: 0.0217200073 | K79: 0 | L79: 0
E80: 68 | F80: =MAX(0.0000000001, SUM(IF(OFFSET($K$12,0,0,MCSims,1)>E79,IF(OFFSET($K$12,0,0,MCSims,1)<=E80,1,0),0))/MCSims) -> 0.00254 | G80: =MAX(0.0000000001, SUM(IF(OFFSET($L$12,0,0,MCSims,1)>E79,IF(OFFSET($L$12,0,0,MCSims,1)<=E80,1,0),0))/MCSims) -> 0.00086 | H80: 0.0139400151 | I80: 0.0209800073 | K80: 59.84134206 | L80: 72.07531205
E81: 69 | F81: =MAX(0.0000000001, SUM(IF(OFFSET($K$12,0,0,MCSims,1)>E80,IF(OFFSET($K$12,0,0,MCSims,1)<=E81,1,0),0))/MCSims) -> 1e-10 | G81: =MAX(0.0000000001, SUM(IF(OFFSET($L$12,0,0,MCSims,1)>E80,IF(OFFSET($L$12,0,0,MCSims,1)<=E81,1,0),0))/MCSims) -> 0.00106 | H81: 0.0114000151 | I81: 0.0201200073 | K81: 0 | L81: 0
E82: 70 | F82: =MAX(0.0000000001, SUM(IF(OFFSET($K$12,0,0,MCSims,1)>E81,IF(OFFSET($K$12,0,0,MCSims,1)<=E82,1,0),0))/MCSims) -> 1e-10 | G82: =MAX(0.0000000001, SUM(IF(OFFSET($L$12,0,0,MCSims,1)>E81,IF(OFFSET($L$12,0,0,MCSims,1)<=E82,1,0),0))/MCSims) -> 0.00088 | H82: 0.011400015 | I82: 0.0190600073 | K82: 0 | L82: 0
E83: 71 | F83: =MAX(0.0000000001, SUM(IF(OFFSET($K$12,0,0,MCSims,1)>E82,IF(OFFSET($K$12,0,0,MCSims,1)<=E83,1,0),0))/MCSims) -> 1e-10 | G83: =MAX(0.0000000001, SUM(IF(OFFSET($L$12,0,0,MCSims,1)>E82,IF(OFFSET($L$12,0,0,MCSims,1)<=E83,1,0),0))/MCSims) -> 0.00072 | H83: 0.0114000149 | I83: 0.0181800073 | K83: 11.96826841 | L83: 8.34386445
E84: 72 | F84: =MAX(0.0000000001, SUM(IF(OFFSET($K$12,0,0,MCSims,1)>E83,IF(OFFSET($K$12,0,0,MCSims,1)<=E84,1,0),0))/MCSims) -> 0.00158 | G84: =MAX(0.0000000001, SUM(IF(OFFSET($L$12,0,0,MCSims,1)>E83,IF(OFFSET($L$12,0,0,MCSims,1)<=E84,1,0),0))/MCSims) -> 0.00062 | H84: 0.0114000148 | I84: 0.0174600073 | K84: 0 | L84: 0
E85: 73 | F85: =MAX(0.0000000001, SUM(IF(OFFSET($K$12,0,0,MCSims,1)>E84,IF(OFFSET($K$12,0,0,MCSims,1)<=E85,1,0),0))/MCSims) -> 1e-10 | G85: =MAX(0.0000000001, SUM(IF(OFFSET($L$12,0,0,MCSims,1)>E84,IF(OFFSET($L$12,0,0,MCSims,1)<=E85,1,0),0))/MCSims) -> 0.00066 | H85: 0.0098200148 | I85: 0.0168400073 | K85: 19.94711402 | L85: 22.69204195
E86: 74 | F86: =MAX(0.0000000001, SUM(IF(OFFSET($K$12,0,0,MCSims,1)>E85,IF(OFFSET($K$12,0,0,MCSims,1)<=E86,1,0),0))/MCSims) -> 1e-10 | G86: =MAX(0.0000000001, SUM(IF(OFFSET($L$12,0,0,MCSims,1)>E85,IF(OFFSET($L$12,0,0,MCSims,1)<=E86,1,0),0))/MCSims) -> 0.00052 | H86: 0.0098200147 | I86: 0.0161800073 | K86: 11.96826841 | L86: 13.29673473
E87: 75 | F87: =MAX(0.0000000001, SUM(IF(OFFSET($K$12,0,0,MCSims,1)>E86,IF(OFFSET($K$12,0,0,MCSims,1)<=E87,1,0),0))/MCSims) -> 1e-10 | G87: =MAX(0.0000000001, SUM(IF(OFFSET($L$12,0,0,MCSims,1)>E86,IF(OFFSET($L$12,0,0,MCSims,1)<=E87,1,0),0))/MCSims) -> 0.00076 | H87: 0.0098200146 | I87: 0.0156600073 | K87: 7.978845608 | L87: 11.84052196
E88: 76 | F88: =MAX(0.0000000001, SUM(IF(OFFSET($K$12,0,0,MCSims,1)>E87,IF(OFFSET($K$12,0,0,MCSims,1)<=E88,1,0),0))/MCSims) -> 0.00178 | G88: =MAX(0.0000000001, SUM(IF(OFFSET($L$12,0,0,MCSims,1)>E87,IF(OFFSET($L$12,0,0,MCSims,1)<=E88,1,0),0))/MCSims) -> 0.00064 | H88: 0.0098200145 | I88: 0.0149000073 | K88: 0 | L88: 0
E89: 77 | F89: =MAX(0.0000000001, SUM(IF(OFFSET($K$12,0,0,MCSims,1)>E88,IF(OFFSET($K$12,0,0,MCSims,1)<=E89,1,0),0))/MCSims) -> 1e-10 | G89: =MAX(0.0000000001, SUM(IF(OFFSET($L$12,0,0,MCSims,1)>E88,IF(OFFSET($L$12,0,0,MCSims,1)<=E89,1,0),0))/MCSims) -> 0.0008 | H89: 0.0080400145 | I89: 0.0142600073 | K89: 3.989422804 | L89: 7.510707558
E90: 78 | F90: =MAX(0.0000000001, SUM(IF(OFFSET($K$12,0,0,MCSims,1)>E89,IF(OFFSET($K$12,0,0,MCSims,1)<=E90,1,0),0))/MCSims) -> 1e-10 | G90: =MAX(0.0000000001, SUM(IF(OFFSET($L$12,0,0,MCSims,1)>E89,IF(OFFSET($L$12,0,0,MCSims,1)<=E90,1,0),0))/MCSims) -> 0.00068 | H90: 0.0080400144 | I90: 0.0134600073 | K90: 0 | L90: 0
E91: 79 | F91: =MAX(0.0000000001, SUM(IF(OFFSET($K$12,0,0,MCSims,1)>E90,IF(OFFSET($K$12,0,0,MCSims,1)<=E91,1,0),0))/MCSims) -> 1e-10 | G91: =MAX(0.0000000001, SUM(IF(OFFSET($L$12,0,0,MCSims,1)>E90,IF(OFFSET($L$12,0,0,MCSims,1)<=E91,1,0),0))/MCSims) -> 0.00056 | H91: 0.0080400143 | I91: 0.0127800073 | K91: 0 | L91: 0
E92: 80 | F92: =MAX(0.0000000001, SUM(IF(OFFSET($K$12,0,0,MCSims,1)>E91,IF(OFFSET($K$12,0,0,MCSims,1)<=E92,1,0),0))/MCSims) -> 0.00114 | G92: =MAX(0.0000000001, SUM(IF(OFFSET($L$12,0,0,MCSims,1)>E91,IF(OFFSET($L$12,0,0,MCSims,1)<=E92,1,0),0))/MCSims) -> 0.00056 | H92: 0.0080400142 | I92: 0.0122200073 | K92: 0 | L92: 0
E93: 81 | F93: =MAX(0.0000000001, SUM(IF(OFFSET($K$12,0,0,MCSims,1)>E92,IF(OFFSET($K$12,0,0,MCSims,1)<=E93,1,0),0))/MCSims) -> 1e-10 | G93: =MAX(0.0000000001, SUM(IF(OFFSET($L$12,0,0,MCSims,1)>E92,IF(OFFSET($L$12,0,0,MCSims,1)<=E93,1,0),0))/MCSims) -> 0.00044 | H93: 0.0069000142 | I93: 0.0116600073 | K93: 3.989422804 | L93: 6.911824881
E94: 82 | F94: =MAX(0.0000000001, SUM(IF(OFFSET($K$12,0,0,MCSims,1)>E93,IF(OFFSET($K$12,0,0,MCSims,1)<=E94,1,0),0))/MCSims) -> 1e-10 | G94: =MAX(0.0000000001, SUM(IF(OFFSET($L$12,0,0,MCSims,1)>E93,IF(OFFSET($L$12,0,0,MCSims,1)<=E94,1,0),0))/MCSims) -> 0.0003 | H94: 0.0069000141 | I94: 0.0112200073 | K94: 15.95769122 | L94: 13.97466695
E95: 83 | F95: =MAX(0.0000000001, SUM(IF(OFFSET($K$12,0,0,MCSims,1)>E94,IF(OFFSET($K$12,0,0,MCSims,1)<=E95,1,0),0))/MCSims) -> 1e-10 | G95: =MAX(0.0000000001, SUM(IF(OFFSET($L$12,0,0,MCSims,1)>E94,IF(OFFSET($L$12,0,0,MCSims,1)<=E95,1,0),0))/MCSims) -> 0.00034 | H95: 0.006900014 | I95: 0.0109200073 | K95: 11.96826841 | L95: 0
E96: 84 | F96: =MAX(0.0000000001, SUM(IF(OFFSET($K$12,0,0,MCSims,1)>E95,IF(OFFSET($K$12,0,0,MCSims,1)<=E96,1,0),0))/MCSims) -> 0.00092 | G96: =MAX(0.0000000001, SUM(IF(OFFSET($L$12,0,0,MCSims,1)>E95,IF(OFFSET($L$12,0,0,MCSims,1)<=E96,1,0),0))/MCSims) -> 0.00038 | H96: 0.0069000139 | I96: 0.0105800073 | K96: 3.989422804 | L96: 0
E97: 85 | F97: =MAX(0.0000000001, SUM(IF(OFFSET($K$12,0,0,MCSims,1)>E96,IF(OFFSET($K$12,0,0,MCSims,1)<=E97,1,0),0))/MCSims) -> 1e-10 | G97: =MAX(0.0000000001, SUM(IF(OFFSET($L$12,0,0,MCSims,1)>E96,IF(OFFSET($L$12,0,0,MCSims,1)<=E97,1,0),0))/MCSims) -> 0.00038 | H97: 0.0059800139 | I97: 0.0102000073 | K97: 0 | L97: 0
E98: 86 | F98: =MAX(0.0000000001, SUM(IF(OFFSET($K$12,0,0,MCSims,1)>E97,IF(OFFSET($K$12,0,0,MCSims,1)<=E98,1,0),0))/MCSims) -> 1e-10 | G98: =MAX(0.0000000001, SUM(IF(OFFSET($L$12,0,0,MCSims,1)>E97,IF(OFFSET($L$12,0,0,MCSims,1)<=E98,1,0),0))/MCSims) -> 0.0004 | H98: 0.0059800138 | I98: 0.0098200073 | K98: 0 | L98: 0
E99: 87 | F99: =MAX(0.0000000001, SUM(IF(OFFSET($K$12,0,0,MCSims,1)>E98,IF(OFFSET($K$12,0,0,MCSims,1)<=E99,1,0),0))/MCSims) -> 1e-10 | G99: =MAX(0.0000000001, SUM(IF(OFFSET($L$12,0,0,MCSims,1)>E98,IF(OFFSET($L$12,0,0,MCSims,1)<=E99,1,0),0))/MCSims) -> 0.00038 | H99: 0.0059800137 | I99: 0.0094200073 | K99: 7.978845608 | L99: 18.02701109
E100: 88 | F100: =MAX(0.0000000001, SUM(IF(OFFSET($K$12,0,0,MCSims,1)>E99,IF(OFFSET($K$12,0,0,MCSims,1)<=E100,1,0),0))/MCSims) -> 0.001 | G100: =MAX(0.0000000001, SUM(IF(OFFSET($L$12,0,0,MCSims,1)>E99,IF(OFFSET($L$12,0,0,MCSims,1)<=E100,1,0),0))/MCSims) -> 0.00052 | H100: 0.0059800136 | I100: 0.0090400073 | K100: 19.94711402 | L100: 40.79946979
E101: 89 | F101: =MAX(0.0000000001, SUM(IF(OFFSET($K$12,0,0,MCSims,1)>E100,IF(OFFSET($K$12,0,0,MCSims,1)<=E101,1,0),0))/MCSims) -> 1e-10 | G101: =MAX(0.0000000001, SUM(IF(OFFSET($L$12,0,0,MCSims,1)>E100,IF(OFFSET($L$12,0,0,MCSims,1)<=E101,1,0),0))/MCSims) -> 0.00018 | H101: 0.0049800136 | I101: 0.0085200073 | K101: 11.96826841 | L101: 10.42099992
E102: 90 | F102: =MAX(0.0000000001, SUM(IF(OFFSET($K$12,0,0,MCSims,1)>E101,IF(OFFSET($K$12,0,0,MCSims,1)<=E102,1,0),0))/MCSims) -> 1e-10 | G102: =MAX(0.0000000001, SUM(IF(OFFSET($L$12,0,0,MCSims,1)>E101,IF(OFFSET($L$12,0,0,MCSims,1)<=E102,1,0),0))/MCSims) -> 0.00024 | H102: 0.0049800135 | I102: 0.0083400073 | K102: 0 | L102: 0
E103: 91 | F103: =MAX(0.0000000001, SUM(IF(OFFSET($K$12,0,0,MCSims,1)>E102,IF(OFFSET($K$12,0,0,MCSims,1)<=E103,1,0),0))/MCSims) -> 1e-10 | G103: =MAX(0.0000000001, SUM(IF(OFFSET($L$12,0,0,MCSims,1)>E102,IF(OFFSET($L$12,0,0,MCSims,1)<=E103,1,0),0))/MCSims) -> 0.00036 | H103: 0.0049800134 | I103: 0.0081000073 | K103: 15.95769122 | L103: 12.02483034
E104: 92 | F104: =MAX(0.0000000001, SUM(IF(OFFSET($K$12,0,0,MCSims,1)>E103,IF(OFFSET($K$12,0,0,MCSims,1)<=E104,1,0),0))/MCSims) -> 0.00072 | G104: =MAX(0.0000000001, SUM(IF(OFFSET($L$12,0,0,MCSims,1)>E103,IF(OFFSET($L$12,0,0,MCSims,1)<=E104,1,0),0))/MCSims) -> 0.00028 | H104: 0.0049800133 | I104: 0.0077400073 | K104: 0 | L104: 0
E105: 93 | F105: =MAX(0.0000000001, SUM(IF(OFFSET($K$12,0,0,MCSims,1)>E104,IF(OFFSET($K$12,0,0,MCSims,1)<=E105,1,0),0))/MCSims) -> 1e-10 | G105: =MAX(0.0000000001, SUM(IF(OFFSET($L$12,0,0,MCSims,1)>E104,IF(OFFSET($L$12,0,0,MCSims,1)<=E105,1,0),0))/MCSims) -> 0.00036 | H105: 0.0042600133 | I105: 0.0074600073 | K105: 0 | L105: 0
E106: 94 | F106: =MAX(0.0000000001, SUM(IF(OFFSET($K$12,0,0,MCSims,1)>E105,IF(OFFSET($K$12,0,0,MCSims,1)<=E106,1,0),0))/MCSims) -> 1e-10 | G106: =MAX(0.0000000001, SUM(IF(OFFSET($L$12,0,0,MCSims,1)>E105,IF(OFFSET($L$12,0,0,MCSims,1)<=E106,1,0),0))/MCSims) -> 0.0003 | H106: 0.0042600132 | I106: 0.0071000073 | K106: 23.93653682 | L106: 24.82923228
E107: 95 | F107: =MAX(0.0000000001, SUM(IF(OFFSET($K$12,0,0,MCSims,1)>E106,IF(OFFSET($K$12,0,0,MCSims,1)<=E107,1,0),0))/MCSims) -> 1e-10 | G107: =MAX(0.0000000001, SUM(IF(OFFSET($L$12,0,0,MCSims,1)>E106,IF(OFFSET($L$12,0,0,MCSims,1)<=E107,1,0),0))/MCSims) -> 0.0002 | H107: 0.0042600131 | I107: 0.0068000073 | K107: 43.88365084 | L107: 44.64033132
E108: 96 | F108: =MAX(0.0000000001, SUM(IF(OFFSET($K$12,0,0,MCSims,1)>E107,IF(OFFSET($K$12,0,0,MCSims,1)<=E108,1,0),0))/MCSims) -> 0.00066 | G108: =MAX(0.0000000001, SUM(IF(OFFSET($L$12,0,0,MCSims,1)>E107,IF(OFFSET($L$12,0,0,MCSims,1)<=E108,1,0),0))/MCSims) -> 0.00016 | H108: 0.004260013 | I108: 0.0066000073 | K108: 0 | L108: 0
E109: 97 | F109: =MAX(0.0000000001, SUM(IF(OFFSET($K$12,0,0,MCSims,1)>E108,IF(OFFSET($K$12,0,0,MCSims,1)<=E109,1,0),0))/MCSims) -> 1e-10 | G109: =MAX(0.0000000001, SUM(IF(OFFSET($L$12,0,0,MCSims,1)>E108,IF(OFFSET($L$12,0,0,MCSims,1)<=E109,1,0),0))/MCSims) -> 6e-05 | H109: 0.003600013 | I109: 0.0064400073 | K109: 0 | L109: 0
E110: 98 | F110: =MAX(0.0000000001, SUM(IF(OFFSET($K$12,0,0,MCSims,1)>E109,IF(OFFSET($K$12,0,0,MCSims,1)<=E110,1,0),0))/MCSims) -> 1e-10 | G110: =MAX(0.0000000001, SUM(IF(OFFSET($L$12,0,0,MCSims,1)>E109,IF(OFFSET($L$12,0,0,MCSims,1)<=E110,1,0),0))/MCSims) -> 0.00018 | H110: =F110+H111 -> 0.0036000129 | I110: 0.0063800073 | K110: 11.96826841 | L110: 19.29645759
E111: 99 | F111: =MAX(0.0000000001, SUM(IF(OFFSET($K$12,0,0,MCSims,1)>E110,IF(OFFSET($K$12,0,0,MCSims,1)<=E111,1,0),0))/MCSims) -> 1e-10 | G111: =MAX(0.0000000001, SUM(IF(OFFSET($L$12,0,0,MCSims,1)>E110,IF(OFFSET($L$12,0,0,MCSims,1)<=E111,1,0),0))/MCSims) -> 0.00026 | H111: 0.0036000128 | I111: 0.0062000073 | K111: 0 | L111: 0
E112: 100 | F112: =MAX(0.0000000001, SUM(IF(OFFSET($K$12,0,0,MCSims,1)>E111,IF(OFFSET($K$12,0,0,MCSims,1)<=E112,1,0),0))/MCSims) -> 0.00066 | G112: =MAX(0.0000000001, SUM(IF(OFFSET($L$12,0,0,MCSims,1)>E111,IF(OFFSET($L$12,0,0,MCSims,1)<=E112,1,0),0))/MCSims) -> 0.00022 | H112: =F112+H113 -> 0.0036000127 | I112: =G112+I113 -> 0.0059400073 | K112: 67.82018767 | L112: 54.78067499
E113: 101 | F113: =MAX(0.0000000001, SUM(IF(OFFSET($K$12,0,0,MCSims,1)>E112,IF(OFFSET($K$12,0,0,MCSims,1)<=E113,1,0),0))/MCSims) -> 1e-10 | G113: =MAX(0.0000000001, SUM(IF(OFFSET($L$12,0,0,MCSims,1)>E112,IF(OFFSET($L$12,0,0,MCSims,1)<=E113,1,0),0))/MCSims) -> 0.00018 | H113: 0.0029400127 | I113: 0.0057200073 | K113: 3.989422804 | L113: 0
E114: 102 | F114: =MAX(0.0000000001, SUM(IF(OFFSET($K$12,0,0,MCSims,1)>E113,IF(OFFSET($K$12,0,0,MCSims,1)<=E114,1,0),0))/MCSims) -> 1e-10 | G114: =MAX(0.0000000001, SUM(IF(OFFSET($L$12,0,0,MCSims,1)>E113,IF(OFFSET($L$12,0,0,MCSims,1)<=E114,1,0),0))/MCSims) -> 0.00016 | H114: 0.0029400126 | I114: 0.0055400073 | K114: 15.95769122 | L114: 35.30239013
E115: 103 | F115: =MAX(0.0000000001, SUM(IF(OFFSET($K$12,0,0,MCSims,1)>E114,IF(OFFSET($K$12,0,0,MCSims,1)<=E115,1,0),0))/MCSims) -> 1e-10 | G115: =MAX(0.0000000001, SUM(IF(OFFSET($L$12,0,0,MCSims,1)>E114,IF(OFFSET($L$12,0,0,MCSims,1)<=E115,1,0),0))/MCSims) -> 0.00016 | H115: 0.0029400125 | I115: 0.0053800073 | K115: 0 | L115: 0
E116: 104 | F116: =MAX(0.0000000001, SUM(IF(OFFSET($K$12,0,0,MCSims,1)>E115,IF(OFFSET($K$12,0,0,MCSims,1)<=E116,1,0),0))/MCSims) -> 0.00052 | G116: =MAX(0.0000000001, SUM(IF(OFFSET($L$12,0,0,MCSims,1)>E115,IF(OFFSET($L$12,0,0,MCSims,1)<=E116,1,0),0))/MCSims) -> 0.00016 | H116: 0.0029400124 | I116: 0.0052200073 | K116: 15.95769122 | L116: 5.270507622
E117: 105 | F117: =MAX(0.0000000001, SUM(IF(OFFSET($K$12,0,0,MCSims,1)>E116,IF(OFFSET($K$12,0,0,MCSims,1)<=E117,1,0),0))/MCSims) -> 1e-10 | G117: =MAX(0.0000000001, SUM(IF(OFFSET($L$12,0,0,MCSims,1)>E116,IF(OFFSET($L$12,0,0,MCSims,1)<=E117,1,0),0))/MCSims) -> 0.00014 | H117: 0.0024200124 | I117: 0.0050600073 | K117: 0 | L117: 0
E118: 106 | F118: =MAX(0.0000000001, SUM(IF(OFFSET($K$12,0,0,MCSims,1)>E117,IF(OFFSET($K$12,0,0,MCSims,1)<=E118,1,0),0))/MCSims) -> 1e-10 | G118: =MAX(0.0000000001, SUM(IF(OFFSET($L$12,0,0,MCSims,1)>E117,IF(OFFSET($L$12,0,0,MCSims,1)<=E118,1,0),0))/MCSims) -> 0.00028 | H118: 0.0024200123 | I118: 0.0049200073 | K118: 7.978845608 | L118: 0
E119: 107 | F119: =MAX(0.0000000001, SUM(IF(OFFSET($K$12,0,0,MCSims,1)>E118,IF(OFFSET($K$12,0,0,MCSims,1)<=E119,1,0),0))/MCSims) -> 1e-10 | G119: =MAX(0.0000000001, SUM(IF(OFFSET($L$12,0,0,MCSims,1)>E118,IF(OFFSET($L$12,0,0,MCSims,1)<=E119,1,0),0))/MCSims) -> 0.00012 | H119: 0.0024200122 | I119: 0.0046400073 | K119: 0 | L119: 0
E120: 108 | F120: =MAX(0.0000000001, SUM(IF(OFFSET($K$12,0,0,MCSims,1)>E119,IF(OFFSET($K$12,0,0,MCSims,1)<=E120,1,0),0))/MCSims) -> 0.00034 | G120: =MAX(0.0000000001, SUM(IF(OFFSET($L$12,0,0,MCSims,1)>E119,IF(OFFSET($L$12,0,0,MCSims,1)<=E120,1,0),0))/MCSims) -> 0.0002 | H120: 0.0024200121 | I120: 0.0045200073 | K120: 7.978845608 | L120: 18.77315788
E121: 109 | F121: =MAX(0.0000000001, SUM(IF(OFFSET($K$12,0,0,MCSims,1)>E120,IF(OFFSET($K$12,0,0,MCSims,1)<=E121,1,0),0))/MCSims) -> 1e-10 | G121: =MAX(0.0000000001, SUM(IF(OFFSET($L$12,0,0,MCSims,1)>E120,IF(OFFSET($L$12,0,0,MCSims,1)<=E121,1,0),0))/MCSims) -> 0.00024 | H121: 0.0020800121 | I121: 0.0043200073 | K121: 7.978845608 | L121: 5.098921393
E122: 110 | F122: =MAX(0.0000000001, SUM(IF(OFFSET($K$12,0,0,MCSims,1)>E121,IF(OFFSET($K$12,0,0,MCSims,1)<=E122,1,0),0))/MCSims) -> 1e-10 | G122: =MAX(0.0000000001, SUM(IF(OFFSET($L$12,0,0,MCSims,1)>E121,IF(OFFSET($L$12,0,0,MCSims,1)<=E122,1,0),0))/MCSims) -> 0.00018 | H122: 0.002080012 | I122: 0.0040800073 | K122: 67.82018767 | L122: 82.51466897
E123: 111 | F123: =MAX(0.0000000001, SUM(IF(OFFSET($K$12,0,0,MCSims,1)>E122,IF(OFFSET($K$12,0,0,MCSims,1)<=E123,1,0),0))/MCSims) -> 1e-10 | G123: =MAX(0.0000000001, SUM(IF(OFFSET($L$12,0,0,MCSims,1)>E122,IF(OFFSET($L$12,0,0,MCSims,1)<=E123,1,0),0))/MCSims) -> 4e-05 | H123: 0.0020800119 | I123: 0.0039000073 | K123: 0 | L123: 0
E124: 112 | F124: =MAX(0.0000000001, SUM(IF(OFFSET($K$12,0,0,MCSims,1)>E123,IF(OFFSET($K$12,0,0,MCSims,1)<=E124,1,0),0))/MCSims) -> 0.00032 | G124: =MAX(0.0000000001, SUM(IF(OFFSET($L$12,0,0,MCSims,1)>E123,IF(OFFSET($L$12,0,0,MCSims,1)<=E124,1,0),0))/MCSims) -> 0.00012 | H124: 0.0020800118 | I124: 0.0038600073 | K124: 3.989422804 | L124: 12.64197979
E125: 113 | F125: =MAX(0.0000000001, SUM(IF(OFFSET($K$12,0,0,MCSims,1)>E124,IF(OFFSET($K$12,0,0,MCSims,1)<=E125,1,0),0))/MCSims) -> 1e-10 | G125: =MAX(0.0000000001, SUM(IF(OFFSET($L$12,0,0,MCSims,1)>E124,IF(OFFSET($L$12,0,0,MCSims,1)<=E125,1,0),0))/MCSims) -> 0.0001 | H125: 0.0017600118 | I125: 0.0037400073 | K125: 11.96826841 | L125: 21.9505855
E126: 114 | F126: =MAX(0.0000000001, SUM(IF(OFFSET($K$12,0,0,MCSims,1)>E125,IF(OFFSET($K$12,0,0,MCSims,1)<=E126,1,0),0))/MCSims) -> 1e-10 | G126: =MAX(0.0000000001, SUM(IF(OFFSET($L$12,0,0,MCSims,1)>E125,IF(OFFSET($L$12,0,0,MCSims,1)<=E126,1,0),0))/MCSims) -> 0.00018 | H126: 0.0017600117 | I126: 0.0036400073 | K126: 7.978845608 | L126: 0
E127: 115 | F127: =MAX(0.0000000001, SUM(IF(OFFSET($K$12,0,0,MCSims,1)>E126,IF(OFFSET($K$12,0,0,MCSims,1)<=E127,1,0),0))/MCSims) -> 1e-10 | G127: =MAX(0.0000000001, SUM(IF(OFFSET($L$12,0,0,MCSims,1)>E126,IF(OFFSET($L$12,0,0,MCSims,1)<=E127,1,0),0))/MCSims) -> 0.00024 | H127: 0.0017600116 | I127: 0.0034600073 | K127: 0 | L127: 0
E128: 116 | F128: =MAX(0.0000000001, SUM(IF(OFFSET($K$12,0,0,MCSims,1)>E127,IF(OFFSET($K$12,0,0,MCSims,1)<=E128,1,0),0))/MCSims) -> 0.00028 | G128: =MAX(0.0000000001, SUM(IF(OFFSET($L$12,0,0,MCSims,1)>E127,IF(OFFSET($L$12,0,0,MCSims,1)<=E128,1,0),0))/MCSims) -> 0.00016 | H128: 0.0017600115 | I128: 0.0032200073 | K128: 0 | L128: 0
E129: 117 | F129: =MAX(0.0000000001, SUM(IF(OFFSET($K$12,0,0,MCSims,1)>E128,IF(OFFSET($K$12,0,0,MCSims,1)<=E129,1,0),0))/MCSims) -> 1e-10 | G129: =MAX(0.0000000001, SUM(IF(OFFSET($L$12,0,0,MCSims,1)>E128,IF(OFFSET($L$12,0,0,MCSims,1)<=E129,1,0),0))/MCSims) -> 0.00016 | H129: 0.0014800115 | I129: 0.0030600073 | K129: 3.989422804 | L129: 0
E130: 118 | F130: =MAX(0.0000000001, SUM(IF(OFFSET($K$12,0,0,MCSims,1)>E129,IF(OFFSET($K$12,0,0,MCSims,1)<=E130,1,0),0))/MCSims) -> 1e-10 | G130: =MAX(0.0000000001, SUM(IF(OFFSET($L$12,0,0,MCSims,1)>E129,IF(OFFSET($L$12,0,0,MCSims,1)<=E130,1,0),0))/MCSims) -> 0.0001 | H130: 0.0014800114 | I130: 0.0029000073 | K130: 43.88365084 | L130: 24.77519946
E131: 119 | F131: =MAX(0.0000000001, SUM(IF(OFFSET($K$12,0,0,MCSims,1)>E130,IF(OFFSET($K$12,0,0,MCSims,1)<=E131,1,0),0))/MCSims) -> 1e-10 | G131: =MAX(0.0000000001, SUM(IF(OFFSET($L$12,0,0,MCSims,1)>E130,IF(OFFSET($L$12,0,0,MCSims,1)<=E131,1,0),0))/MCSims) -> 0.00018 | H131: 0.0014800113 | I131: 0.0028000073 | K131: 3.989422804 | L131: 17.95691672
E132: 120 | F132: =MAX(0.0000000001, SUM(IF(OFFSET($K$12,0,0,MCSims,1)>E131,IF(OFFSET($K$12,0,0,MCSims,1)<=E132,1,0),0))/MCSims) -> 0.00018 | G132: =MAX(0.0000000001, SUM(IF(OFFSET($L$12,0,0,MCSims,1)>E131,IF(OFFSET($L$12,0,0,MCSims,1)<=E132,1,0),0))/MCSims) -> 8e-05 | H132: 0.0014800112 | I132: 0.0026200073 | K132: 15.95769122 | L132: 3.159873654
E133: 121 | F133: =MAX(0.0000000001, SUM(IF(OFFSET($K$12,0,0,MCSims,1)>E132,IF(OFFSET($K$12,0,0,MCSims,1)<=E133,1,0),0))/MCSims) -> 1e-10 | G133: =MAX(0.0000000001, SUM(IF(OFFSET($L$12,0,0,MCSims,1)>E132,IF(OFFSET($L$12,0,0,MCSims,1)<=E133,1,0),0))/MCSims) -> 0.00012 | H133: 0.0013000112 | I133: 0.0025400073 | K133: 11.96826841 | L133: 22.63321878
E134: 122 | F134: =MAX(0.0000000001, SUM(IF(OFFSET($K$12,0,0,MCSims,1)>E133,IF(OFFSET($K$12,0,0,MCSims,1)<=E134,1,0),0))/MCSims) -> 1e-10 | G134: =MAX(0.0000000001, SUM(IF(OFFSET($L$12,0,0,MCSims,1)>E133,IF(OFFSET($L$12,0,0,MCSims,1)<=E134,1,0),0))/MCSims) -> 0.00016 | H134: 0.0013000111 | I134: 0.0024200073 | K134: 3.989422804 | L134: 0
E135: 123 | F135: =MAX(0.0000000001, SUM(IF(OFFSET($K$12,0,0,MCSims,1)>E134,IF(OFFSET($K$12,0,0,MCSims,1)<=E135,1,0),0))/MCSims) -> 1e-10 | G135: =MAX(0.0000000001, SUM(IF(OFFSET($L$12,0,0,MCSims,1)>E134,IF(OFFSET($L$12,0,0,MCSims,1)<=E135,1,0),0))/MCSims) -> 4e-05 | H135: 0.001300011 | I135: 0.0022600073 | K135: 27.92595963 | L135: 43.32103153
E136: 124 | F136: =MAX(0.0000000001, SUM(IF(OFFSET($K$12,0,0,MCSims,1)>E135,IF(OFFSET($K$12,0,0,MCSims,1)<=E136,1,0),0))/MCSims) -> 0.0002 | G136: =MAX(0.0000000001, SUM(IF(OFFSET($L$12,0,0,MCSims,1)>E135,IF(OFFSET($L$12,0,0,MCSims,1)<=E136,1,0),0))/MCSims) -> 0.00012 | H136: 0.0013000109 | I136: 0.0022200073 | K136: 0 | L136: 0
E137: 125 | F137: =MAX(0.0000000001, SUM(IF(OFFSET($K$12,0,0,MCSims,1)>E136,IF(OFFSET($K$12,0,0,MCSims,1)<=E137,1,0),0))/MCSims) -> 1e-10 | G137: =MAX(0.0000000001, SUM(IF(OFFSET($L$12,0,0,MCSims,1)>E136,IF(OFFSET($L$12,0,0,MCSims,1)<=E137,1,0),0))/MCSims) -> 8e-05 | H137: 0.0011000109 | I137: 0.0021000073 | K137: 11.96826841 | L137: 11.51795543
E138: 126 | F138: =MAX(0.0000000001, SUM(IF(OFFSET($K$12,0,0,MCSims,1)>E137,IF(OFFSET($K$12,0,0,MCSims,1)<=E138,1,0),0))/MCSims) -> 1e-10 | G138: =MAX(0.0000000001, SUM(IF(OFFSET($L$12,0,0,MCSims,1)>E137,IF(OFFSET($L$12,0,0,MCSims,1)<=E138,1,0),0))/MCSims) -> 6e-05 | H138: 0.0011000108 | I138: 0.0020200073 | K138: 0 | L138: 0
E139: 127 | F139: =MAX(0.0000000001, SUM(IF(OFFSET($K$12,0,0,MCSims,1)>E138,IF(OFFSET($K$12,0,0,MCSims,1)<=E139,1,0),0))/MCSims) -> 1e-10 | G139: =MAX(0.0000000001, SUM(IF(OFFSET($L$12,0,0,MCSims,1)>E138,IF(OFFSET($L$12,0,0,MCSims,1)<=E139,1,0),0))/MCSims) -> 8e-05 | H139: 0.0011000107 | I139: 0.0019600073 | K139: 11.96826841 | L139: 3.244130355
E140: 128 | F140: =MAX(0.0000000001, SUM(IF(OFFSET($K$12,0,0,MCSims,1)>E139,IF(OFFSET($K$12,0,0,MCSims,1)<=E140,1,0),0))/MCSims) -> 0.00012 | G140: =MAX(0.0000000001, SUM(IF(OFFSET($L$12,0,0,MCSims,1)>E139,IF(OFFSET($L$12,0,0,MCSims,1)<=E140,1,0),0))/MCSims) -> 6e-05 | H140: 0.0011000106 | I140: 0.0018800073 | K140: 0 | L140: 0
E141: =E140+NumNames/100 -> 129 | F141: =MAX(0.0000000001, SUM(IF(OFFSET($K$12,0,0,MCSims,1)>E140,IF(OFFSET($K$12,0,0,MCSims,1)<=E141,1,0),0))/MCSims) -> 1e-10 | G141: =MAX(0.0000000001, SUM(IF(OFFSET($L$12,0,0,MCSims,1)>E140,IF(OFFSET($L$12,0,0,MCSims,1)<=E141,1,0),0))/MCSims) -> 4e-05 | H141: 0.0009800106 | I141: 0.0018200073 | K141: 23.93653682 | L141: 26.50865107
E142: 130 | F142: =MAX(0.0000000001, SUM(IF(OFFSET($K$12,0,0,MCSims,1)>E141,IF(OFFSET($K$12,0,0,MCSims,1)<=E142,1,0),0))/MCSims) -> 1e-10 | G142: =MAX(0.0000000001, SUM(IF(OFFSET($L$12,0,0,MCSims,1)>E141,IF(OFFSET($L$12,0,0,MCSims,1)<=E142,1,0),0))/MCSims) -> 1e-10 | H142: 0.0009800105 | I142: 0.0017800073 | K142: 3.989422804 | L142: 0
E143: 131 | F143: =MAX(0.0000000001, SUM(IF(OFFSET($K$12,0,0,MCSims,1)>E142,IF(OFFSET($K$12,0,0,MCSims,1)<=E143,1,0),0))/MCSims) -> 1e-10 | G143: =MAX(0.0000000001, SUM(IF(OFFSET($L$12,0,0,MCSims,1)>E142,IF(OFFSET($L$12,0,0,MCSims,1)<=E143,1,0),0))/MCSims) -> 2e-05 | H143: 0.0009800104 | I143: 0.0017800072 | K143: 0 | L143: 0
E144: 132 | F144: =MAX(0.0000000001, SUM(IF(OFFSET($K$12,0,0,MCSims,1)>E143,IF(OFFSET($K$12,0,0,MCSims,1)<=E144,1,0),0))/MCSims) -> 0.00016 | G144: =MAX(0.0000000001, SUM(IF(OFFSET($L$12,0,0,MCSims,1)>E143,IF(OFFSET($L$12,0,0,MCSims,1)<=E144,1,0),0))/MCSims) -> 6e-05 | H144: 0.0009800103 | I144: 0.0017600072 | K144: 3.989422804 | L144: 31.13870051
E145: 133 | F145: =MAX(0.0000000001, SUM(IF(OFFSET($K$12,0,0,MCSims,1)>E144,IF(OFFSET($K$12,0,0,MCSims,1)<=E145,1,0),0))/MCSims) -> 1e-10 | G145: =MAX(0.0000000001, SUM(IF(OFFSET($L$12,0,0,MCSims,1)>E144,IF(OFFSET($L$12,0,0,MCSims,1)<=E145,1,0),0))/MCSims) -> 8e-05 | H145: 0.0008200103 | I145: 0.0017000072 | K145: 0 | L145: 0
E146: 134 | F146: =MAX(0.0000000001, SUM(IF(OFFSET($K$12,0,0,MCSims,1)>E145,IF(OFFSET($K$12,0,0,MCSims,1)<=E146,1,0),0))/MCSims) -> 1e-10 | G146: =MAX(0.0000000001, SUM(IF(OFFSET($L$12,0,0,MCSims,1)>E145,IF(OFFSET($L$12,0,0,MCSims,1)<=E146,1,0),0))/MCSims) -> 6e-05 | H146: 0.0008200102 | I146: 0.0016200072 | K146: 0 | L146: 0
E147: 135 | F147: =MAX(0.0000000001, SUM(IF(OFFSET($K$12,0,0,MCSims,1)>E146,IF(OFFSET($K$12,0,0,MCSims,1)<=E147,1,0),0))/MCSims) -> 1e-10 | G147: =MAX(0.0000000001, SUM(IF(OFFSET($L$12,0,0,MCSims,1)>E146,IF(OFFSET($L$12,0,0,MCSims,1)<=E147,1,0),0))/MCSims) -> 4e-05 | H147: 0.0008200101 | I147: 0.0015600072 | K147: 31.91538243 | L147: 19.86265134
E148: 136 | F148: =MAX(0.0000000001, SUM(IF(OFFSET($K$12,0,0,MCSims,1)>E147,IF(OFFSET($K$12,0,0,MCSims,1)<=E148,1,0),0))/MCSims) -> 0.00016 | G148: =MAX(0.0000000001, SUM(IF(OFFSET($L$12,0,0,MCSims,1)>E147,IF(OFFSET($L$12,0,0,MCSims,1)<=E148,1,0),0))/MCSims) -> 6e-05 | H148: 0.00082001 | I148: 0.0015200072 | K148: 39.89422804 | L148: 24.9585316
E149: 137 | F149: =MAX(0.0000000001, SUM(IF(OFFSET($K$12,0,0,MCSims,1)>E148,IF(OFFSET($K$12,0,0,MCSims,1)<=E149,1,0),0))/MCSims) -> 1e-10 | G149: =MAX(0.0000000001, SUM(IF(OFFSET($L$12,0,0,MCSims,1)>E148,IF(OFFSET($L$12,0,0,MCSims,1)<=E149,1,0),0))/MCSims) -> 4e-05 | H149: 0.00066001 | I149: 0.0014600072 | K149: 3.989422804 | L149: 0
E150: 138 | F150: =MAX(0.0000000001, SUM(IF(OFFSET($K$12,0,0,MCSims,1)>E149,IF(OFFSET($K$12,0,0,MCSims,1)<=E150,1,0),0))/MCSims) -> 1e-10 | G150: =MAX(0.0000000001, SUM(IF(OFFSET($L$12,0,0,MCSims,1)>E149,IF(OFFSET($L$12,0,0,MCSims,1)<=E150,1,0),0))/MCSims) -> 6e-05 | H150: 0.0006600099 | I150: 0.0014200072 | K150: 0 | L150: 0
E151: 139 | F151: =MAX(0.0000000001, SUM(IF(OFFSET($K$12,0,0,MCSims,1)>E150,IF(OFFSET($K$12,0,0,MCSims,1)<=E151,1,0),0))/MCSims) -> 1e-10 | G151: =MAX(0.0000000001, SUM(IF(OFFSET($L$12,0,0,MCSims,1)>E150,IF(OFFSET($L$12,0,0,MCSims,1)<=E151,1,0),0))/MCSims) -> 4e-05 | H151: 0.0006600098 | I151: 0.0013600072 | K151: 3.989422804 | L151: 6.441290671
E152: 140 | F152: =MAX(0.0000000001, SUM(IF(OFFSET($K$12,0,0,MCSims,1)>E151,IF(OFFSET($K$12,0,0,MCSims,1)<=E152,1,0),0))/MCSims) -> 2e-05 | G152: =MAX(0.0000000001, SUM(IF(OFFSET($L$12,0,0,MCSims,1)>E151,IF(OFFSET($L$12,0,0,MCSims,1)<=E152,1,0),0))/MCSims) -> 4e-05 | H152: 0.0006600097 | I152: 0.0013200072 | K152: 0 | L152: 0
E153: 141 | F153: =MAX(0.0000000001, SUM(IF(OFFSET($K$12,0,0,MCSims,1)>E152,IF(OFFSET($K$12,0,0,MCSims,1)<=E153,1,0),0))/MCSims) -> 1e-10 | G153: =MAX(0.0000000001, SUM(IF(OFFSET($L$12,0,0,MCSims,1)>E152,IF(OFFSET($L$12,0,0,MCSims,1)<=E153,1,0),0))/MCSims) -> 8e-05 | H153: 0.0006400097 | I153: 0.0012800072 | K153: 0 | L153: 0
E154: 142 | F154: =MAX(0.0000000001, SUM(IF(OFFSET($K$12,0,0,MCSims,1)>E153,IF(OFFSET($K$12,0,0,MCSims,1)<=E154,1,0),0))/MCSims) -> 1e-10 | G154: =MAX(0.0000000001, SUM(IF(OFFSET($L$12,0,0,MCSims,1)>E153,IF(OFFSET($L$12,0,0,MCSims,1)<=E154,1,0),0))/MCSims) -> 8e-05 | H154: 0.0006400096 | I154: 0.0012000072 | K154: 0 | L154: 0
E155: 143 | F155: =MAX(0.0000000001, SUM(IF(OFFSET($K$12,0,0,MCSims,1)>E154,IF(OFFSET($K$12,0,0,MCSims,1)<=E155,1,0),0))/MCSims) -> 1e-10 | G155: =MAX(0.0000000001, SUM(IF(OFFSET($L$12,0,0,MCSims,1)>E154,IF(OFFSET($L$12,0,0,MCSims,1)<=E155,1,0),0))/MCSims) -> 1e-10 | H155: 0.0006400095 | I155: 0.0011200072 | K155: 0 | L155: 0
E156: 144 | F156: =MAX(0.0000000001, SUM(IF(OFFSET($K$12,0,0,MCSims,1)>E155,IF(OFFSET($K$12,0,0,MCSims,1)<=E156,1,0),0))/MCSims) -> 8e-05 | G156: =MAX(0.0000000001, SUM(IF(OFFSET($L$12,0,0,MCSims,1)>E155,IF(OFFSET($L$12,0,0,MCSims,1)<=E156,1,0),0))/MCSims) -> 4e-05 | H156: 0.0006400094 | I156: 0.0011200071 | K156: 15.95769122 | L156: 22.18494655
E157: 145 | F157: =MAX(0.0000000001, SUM(IF(OFFSET($K$12,0,0,MCSims,1)>E156,IF(OFFSET($K$12,0,0,MCSims,1)<=E157,1,0),0))/MCSims) -> 1e-10 | G157: =MAX(0.0000000001, SUM(IF(OFFSET($L$12,0,0,MCSims,1)>E156,IF(OFFSET($L$12,0,0,MCSims,1)<=E157,1,0),0))/MCSims) -> 0.0001 | H157: 0.0005600094 | I157: 0.0010800071 | K157: 0 | L157: 0
E158: 146 | F158: =MAX(0.0000000001, SUM(IF(OFFSET($K$12,0,0,MCSims,1)>E157,IF(OFFSET($K$12,0,0,MCSims,1)<=E158,1,0),0))/MCSims) -> 1e-10 | G158: =MAX(0.0000000001, SUM(IF(OFFSET($L$12,0,0,MCSims,1)>E157,IF(OFFSET($L$12,0,0,MCSims,1)<=E158,1,0),0))/MCSims) -> 4e-05 | H158: 0.0005600093 | I158: 0.0009800071 | K158: 0 | L158: 0
E159: 147 | F159: =MAX(0.0000000001, SUM(IF(OFFSET($K$12,0,0,MCSims,1)>E158,IF(OFFSET($K$12,0,0,MCSims,1)<=E159,1,0),0))/MCSims) -> 1e-10 | G159: =MAX(0.0000000001, SUM(IF(OFFSET($L$12,0,0,MCSims,1)>E158,IF(OFFSET($L$12,0,0,MCSims,1)<=E159,1,0),0))/MCSims) -> 1e-10 | H159: 0.0005600092 | I159: 0.0009400071 | K159: 0 | L159: 0
E160: 148 | F160: =MAX(0.0000000001, SUM(IF(OFFSET($K$12,0,0,MCSims,1)>E159,IF(OFFSET($K$12,0,0,MCSims,1)<=E160,1,0),0))/MCSims) -> 0.0001 | G160: =MAX(0.0000000001, SUM(IF(OFFSET($L$12,0,0,MCSims,1)>E159,IF(OFFSET($L$12,0,0,MCSims,1)<=E160,1,0),0))/MCSims) -> 4e-05 | H160: 0.0005600091 | I160: 0.000940007 | K160: 7.978845608 | L160: 0.1263668605
E161: 149 | F161: =MAX(0.0000000001, SUM(IF(OFFSET($K$12,0,0,MCSims,1)>E160,IF(OFFSET($K$12,0,0,MCSims,1)<=E161,1,0),0))/MCSims) -> 1e-10 | G161: =MAX(0.0000000001, SUM(IF(OFFSET($L$12,0,0,MCSims,1)>E160,IF(OFFSET($L$12,0,0,MCSims,1)<=E161,1,0),0))/MCSims) -> 2e-05 | H161: 0.0004600091 | I161: 0.000900007 | K161: 11.96826841 | L161: 0
E162: 150 | F162: =MAX(0.0000000001, SUM(IF(OFFSET($K$12,0,0,MCSims,1)>E161,IF(OFFSET($K$12,0,0,MCSims,1)<=E162,1,0),0))/MCSims) -> 1e-10 | G162: =MAX(0.0000000001, SUM(IF(OFFSET($L$12,0,0,MCSims,1)>E161,IF(OFFSET($L$12,0,0,MCSims,1)<=E162,1,0),0))/MCSims) -> 0.0001 | H162: 0.000460009 | I162: 0.000880007 | K162: 3.989422804 | L162: 0
E163: 151 | F163: =MAX(0.0000000001, SUM(IF(OFFSET($K$12,0,0,MCSims,1)>E162,IF(OFFSET($K$12,0,0,MCSims,1)<=E163,1,0),0))/MCSims) -> 1e-10 | G163: =MAX(0.0000000001, SUM(IF(OFFSET($L$12,0,0,MCSims,1)>E162,IF(OFFSET($L$12,0,0,MCSims,1)<=E163,1,0),0))/MCSims) -> 8e-05 | H163: 0.0004600089 | I163: 0.000780007 | K163: 0 | L163: 0
E164: 152 | F164: =MAX(0.0000000001, SUM(IF(OFFSET($K$12,0,0,MCSims,1)>E163,IF(OFFSET($K$12,0,0,MCSims,1)<=E164,1,0),0))/MCSims) -> 8e-05 | G164: =MAX(0.0000000001, SUM(IF(OFFSET($L$12,0,0,MCSims,1)>E163,IF(OFFSET($L$12,0,0,MCSims,1)<=E164,1,0),0))/MCSims) -> 1e-10 | H164: 0.0004600088 | I164: 0.000700007 | K164: 0 | L164: 0
E165: 153 | F165: =MAX(0.0000000001, SUM(IF(OFFSET($K$12,0,0,MCSims,1)>E164,IF(OFFSET($K$12,0,0,MCSims,1)<=E165,1,0),0))/MCSims) -> 1e-10 | G165: =MAX(0.0000000001, SUM(IF(OFFSET($L$12,0,0,MCSims,1)>E164,IF(OFFSET($L$12,0,0,MCSims,1)<=E165,1,0),0))/MCSims) -> 4e-05 | H165: 0.0003800088 | I165: 0.0007000069 | K165: 7.978845608 | L165: 0
E166: 154 | F166: =MAX(0.0000000001, SUM(IF(OFFSET($K$12,0,0,MCSims,1)>E165,IF(OFFSET($K$12,0,0,MCSims,1)<=E166,1,0),0))/MCSims) -> 1e-10 | G166: =MAX(0.0000000001, SUM(IF(OFFSET($L$12,0,0,MCSims,1)>E165,IF(OFFSET($L$12,0,0,MCSims,1)<=E166,1,0),0))/MCSims) -> 2e-05 | H166: 0.0003800087 | I166: 0.0006600069 | K166: 11.96826841 | L166: 1.846729156
E167: 155 | F167: =MAX(0.0000000001, SUM(IF(OFFSET($K$12,0,0,MCSims,1)>E166,IF(OFFSET($K$12,0,0,MCSims,1)<=E167,1,0),0))/MCSims) -> 1e-10 | G167: =MAX(0.0000000001, SUM(IF(OFFSET($L$12,0,0,MCSims,1)>E166,IF(OFFSET($L$12,0,0,MCSims,1)<=E167,1,0),0))/MCSims) -> 1e-10 | H167: 0.0003800086 | I167: 0.0006400069 | K167: 7.978845608 | L167: 25.00716179
E168: 156 | F168: =MAX(0.0000000001, SUM(IF(OFFSET($K$12,0,0,MCSims,1)>E167,IF(OFFSET($K$12,0,0,MCSims,1)<=E168,1,0),0))/MCSims) -> 2e-05 | G168: =MAX(0.0000000001, SUM(IF(OFFSET($L$12,0,0,MCSims,1)>E167,IF(OFFSET($L$12,0,0,MCSims,1)<=E168,1,0),0))/MCSims) -> 2e-05 | H168: 0.0003800085 | I168: 0.0006400068 | K168: 0 | L168: 0
E169: 157 | F169: =MAX(0.0000000001, SUM(IF(OFFSET($K$12,0,0,MCSims,1)>E168,IF(OFFSET($K$12,0,0,MCSims,1)<=E169,1,0),0))/MCSims) -> 1e-10 | G169: =MAX(0.0000000001, SUM(IF(OFFSET($L$12,0,0,MCSims,1)>E168,IF(OFFSET($L$12,0,0,MCSims,1)<=E169,1,0),0))/MCSims) -> 1e-10 | H169: 0.0003600085 | I169: 0.0006200068 | K169: 0 | L169: 0
E170: 158 | F170: =MAX(0.0000000001, SUM(IF(OFFSET($K$12,0,0,MCSims,1)>E169,IF(OFFSET($K$12,0,0,MCSims,1)<=E170,1,0),0))/MCSims) -> 1e-10 | G170: =MAX(0.0000000001, SUM(IF(OFFSET($L$12,0,0,MCSims,1)>E169,IF(OFFSET($L$12,0,0,MCSims,1)<=E170,1,0),0))/MCSims) -> 1e-10 | H170: 0.0003600084 | I170: 0.0006200067 | K170: 0 | L170: 0
E171: 159 | F171: =MAX(0.0000000001, SUM(IF(OFFSET($K$12,0,0,MCSims,1)>E170,IF(OFFSET($K$12,0,0,MCSims,1)<=E171,1,0),0))/MCSims) -> 1e-10 | G171: =MAX(0.0000000001, SUM(IF(OFFSET($L$12,0,0,MCSims,1)>E170,IF(OFFSET($L$12,0,0,MCSims,1)<=E171,1,0),0))/MCSims) -> 2e-05 | H171: 0.0003600083 | I171: 0.0006200066 | K171: 11.96826841 | L171: 0
E172: 160 | F172: =MAX(0.0000000001, SUM(IF(OFFSET($K$12,0,0,MCSims,1)>E171,IF(OFFSET($K$12,0,0,MCSims,1)<=E172,1,0),0))/MCSims) -> 2e-05 | G172: =MAX(0.0000000001, SUM(IF(OFFSET($L$12,0,0,MCSims,1)>E171,IF(OFFSET($L$12,0,0,MCSims,1)<=E172,1,0),0))/MCSims) -> 2e-05 | H172: 0.0003600082 | I172: 0.0006000066 | K172: 3.989422804 | L172: 4.294822917
E173: 161 | F173: =MAX(0.0000000001, SUM(IF(OFFSET($K$12,0,0,MCSims,1)>E172,IF(OFFSET($K$12,0,0,MCSims,1)<=E173,1,0),0))/MCSims) -> 1e-10 | G173: =MAX(0.0000000001, SUM(IF(OFFSET($L$12,0,0,MCSims,1)>E172,IF(OFFSET($L$12,0,0,MCSims,1)<=E173,1,0),0))/MCSims) -> 2e-05 | H173: 0.0003400082 | I173: 0.0005800066 | K173: 0 | L173: 0
E174: 162 | F174: =MAX(0.0000000001, SUM(IF(OFFSET($K$12,0,0,MCSims,1)>E173,IF(OFFSET($K$12,0,0,MCSims,1)<=E174,1,0),0))/MCSims) -> 1e-10 | G174: =MAX(0.0000000001, SUM(IF(OFFSET($L$12,0,0,MCSims,1)>E173,IF(OFFSET($L$12,0,0,MCSims,1)<=E174,1,0),0))/MCSims) -> 2e-05 | H174: 0.0003400081 | I174: 0.0005600066 | K174: 3.989422804 | L174: 8.490208374
E175: 163 | F175: =MAX(0.0000000001, SUM(IF(OFFSET($K$12,0,0,MCSims,1)>E174,IF(OFFSET($K$12,0,0,MCSims,1)<=E175,1,0),0))/MCSims) -> 1e-10 | G175: =MAX(0.0000000001, SUM(IF(OFFSET($L$12,0,0,MCSims,1)>E174,IF(OFFSET($L$12,0,0,MCSims,1)<=E175,1,0),0))/MCSims) -> 2e-05 | H175: 0.000340008 | I175: 0.0005400066 | K175: 0 | L175: 0
E176: 164 | F176: =MAX(0.0000000001, SUM(IF(OFFSET($K$12,0,0,MCSims,1)>E175,IF(OFFSET($K$12,0,0,MCSims,1)<=E176,1,0),0))/MCSims) -> 0.0001 | G176: =MAX(0.0000000001, SUM(IF(OFFSET($L$12,0,0,MCSims,1)>E175,IF(OFFSET($L$12,0,0,MCSims,1)<=E176,1,0),0))/MCSims) -> 1e-10 | H176: =F176+H177 -> 0.0003400079 | I176: =G176+I177 -> 0.0005200066 | K176: 7.978845608 | L176: 8.789933351
E177: 165 | F177: =MAX(0.0000000001, SUM(IF(OFFSET($K$12,0,0,MCSims,1)>E176,IF(OFFSET($K$12,0,0,MCSims,1)<=E177,1,0),0))/MCSims) -> 1e-10 | G177: =MAX(0.0000000001, SUM(IF(OFFSET($L$12,0,0,MCSims,1)>E176,IF(OFFSET($L$12,0,0,MCSims,1)<=E177,1,0),0))/MCSims) -> 4e-05 | H177: 0.0002400079 | I177: 0.0005200065 | K177: 19.94711402 | L177: 11.37710021
E178: 166 | F178: =MAX(0.0000000001, SUM(IF(OFFSET($K$12,0,0,MCSims,1)>E177,IF(OFFSET($K$12,0,0,MCSims,1)<=E178,1,0),0))/MCSims) -> 1e-10 | G178: =MAX(0.0000000001, SUM(IF(OFFSET($L$12,0,0,MCSims,1)>E177,IF(OFFSET($L$12,0,0,MCSims,1)<=E178,1,0),0))/MCSims) -> 1e-10 | H178: 0.0002400078 | I178: 0.0004800065 | K178: 115.6932613 | L178: 92.97406409
E179: 167 | F179: =MAX(0.0000000001, SUM(IF(OFFSET($K$12,0,0,MCSims,1)>E178,IF(OFFSET($K$12,0,0,MCSims,1)<=E179,1,0),0))/MCSims) -> 1e-10 | G179: =MAX(0.0000000001, SUM(IF(OFFSET($L$12,0,0,MCSims,1)>E178,IF(OFFSET($L$12,0,0,MCSims,1)<=E179,1,0),0))/MCSims) -> 4e-05 | H179: 0.0002400077 | I179: 0.0004800064 | K179: 3.989422804 | L179: 0
E180: 168 | F180: =MAX(0.0000000001, SUM(IF(OFFSET($K$12,0,0,MCSims,1)>E179,IF(OFFSET($K$12,0,0,MCSims,1)<=E180,1,0),0))/MCSims) -> 6e-05 | G180: =MAX(0.0000000001, SUM(IF(OFFSET($L$12,0,0,MCSims,1)>E179,IF(OFFSET($L$12,0,0,MCSims,1)<=E180,1,0),0))/MCSims) -> 4e-05 | H180: 0.0002400076 | I180: 0.0004400064 | K180: 0 | L180: 0
E181: 169 | F181: =MAX(0.0000000001, SUM(IF(OFFSET($K$12,0,0,MCSims,1)>E180,IF(OFFSET($K$12,0,0,MCSims,1)<=E181,1,0),0))/MCSims) -> 1e-10 | G181: =MAX(0.0000000001, SUM(IF(OFFSET($L$12,0,0,MCSims,1)>E180,IF(OFFSET($L$12,0,0,MCSims,1)<=E181,1,0),0))/MCSims) -> 2e-05 | H181: 0.0001800076 | I181: 0.0004000064 | K181: 7.978845608 | L181: 13.88955741
E182: 170 | F182: =MAX(0.0000000001, SUM(IF(OFFSET($K$12,0,0,MCSims,1)>E181,IF(OFFSET($K$12,0,0,MCSims,1)<=E182,1,0),0))/MCSims) -> 1e-10 | G182: =MAX(0.0000000001, SUM(IF(OFFSET($L$12,0,0,MCSims,1)>E181,IF(OFFSET($L$12,0,0,MCSims,1)<=E182,1,0),0))/MCSims) -> 2e-05 | H182: 0.0001800075 | I182: 0.0003800064 | K182: 11.96826841 | L182: 0.2607225355
E183: 171 | F183: =MAX(0.0000000001, SUM(IF(OFFSET($K$12,0,0,MCSims,1)>E182,IF(OFFSET($K$12,0,0,MCSims,1)<=E183,1,0),0))/MCSims) -> 1e-10 | G183: =MAX(0.0000000001, SUM(IF(OFFSET($L$12,0,0,MCSims,1)>E182,IF(OFFSET($L$12,0,0,MCSims,1)<=E183,1,0),0))/MCSims) -> 2e-05 | H183: 0.0001800074 | I183: 0.0003600064 | K183: 3.989422804 | L183: 6.785716633
E184: 172 | F184: =MAX(0.0000000001, SUM(IF(OFFSET($K$12,0,0,MCSims,1)>E183,IF(OFFSET($K$12,0,0,MCSims,1)<=E184,1,0),0))/MCSims) -> 4e-05 | G184: =MAX(0.0000000001, SUM(IF(OFFSET($L$12,0,0,MCSims,1)>E183,IF(OFFSET($L$12,0,0,MCSims,1)<=E184,1,0),0))/MCSims) -> 4e-05 | H184: 0.0001800073 | I184: 0.0003400064 | K184: 0 | L184: 0
E185: 173 | F185: =MAX(0.0000000001, SUM(IF(OFFSET($K$12,0,0,MCSims,1)>E184,IF(OFFSET($K$12,0,0,MCSims,1)<=E185,1,0),0))/MCSims) -> 1e-10 | G185: =MAX(0.0000000001, SUM(IF(OFFSET($L$12,0,0,MCSims,1)>E184,IF(OFFSET($L$12,0,0,MCSims,1)<=E185,1,0),0))/MCSims) -> 1e-10 | H185: 0.0001400073 | I185: 0.0003000064 | K185: 0 | L185: 0
E186: 174 | F186: =MAX(0.0000000001, SUM(IF(OFFSET($K$12,0,0,MCSims,1)>E185,IF(OFFSET($K$12,0,0,MCSims,1)<=E186,1,0),0))/MCSims) -> 1e-10 | G186: =MAX(0.0000000001, SUM(IF(OFFSET($L$12,0,0,MCSims,1)>E185,IF(OFFSET($L$12,0,0,MCSims,1)<=E186,1,0),0))/MCSims) -> 2e-05 | H186: 0.0001400072 | I186: 0.0003000063 | K186: 0 | L186: 0
E187: 175 | F187: =MAX(0.0000000001, SUM(IF(OFFSET($K$12,0,0,MCSims,1)>E186,IF(OFFSET($K$12,0,0,MCSims,1)<=E187,1,0),0))/MCSims) -> 1e-10 | G187: =MAX(0.0000000001, SUM(IF(OFFSET($L$12,0,0,MCSims,1)>E186,IF(OFFSET($L$12,0,0,MCSims,1)<=E187,1,0),0))/MCSims) -> 2e-05 | H187: 0.0001400071 | I187: 0.0002800063 | K187: 11.96826841 | L187: 0.9374631268
E188: 176 | F188: =MAX(0.0000000001, SUM(IF(OFFSET($K$12,0,0,MCSims,1)>E187,IF(OFFSET($K$12,0,0,MCSims,1)<=E188,1,0),0))/MCSims) -> 4e-05 | G188: =MAX(0.0000000001, SUM(IF(OFFSET($L$12,0,0,MCSims,1)>E187,IF(OFFSET($L$12,0,0,MCSims,1)<=E188,1,0),0))/MCSims) -> 1e-10 | H188: 0.000140007 | I188: 0.0002600063 | K188: 15.95769122 | L188: 10.05576048
E189: 177 | F189: =MAX(0.0000000001, SUM(IF(OFFSET($K$12,0,0,MCSims,1)>E188,IF(OFFSET($K$12,0,0,MCSims,1)<=E189,1,0),0))/MCSims) -> 1e-10 | G189: =MAX(0.0000000001, SUM(IF(OFFSET($L$12,0,0,MCSims,1)>E188,IF(OFFSET($L$12,0,0,MCSims,1)<=E189,1,0),0))/MCSims) -> 2e-05 | H189: 0.000100007 | I189: 0.0002600062 | K189: 0 | L189: 0
E190: 178 | F190: =MAX(0.0000000001, SUM(IF(OFFSET($K$12,0,0,MCSims,1)>E189,IF(OFFSET($K$12,0,0,MCSims,1)<=E190,1,0),0))/MCSims) -> 1e-10 | G190: =MAX(0.0000000001, SUM(IF(OFFSET($L$12,0,0,MCSims,1)>E189,IF(OFFSET($L$12,0,0,MCSims,1)<=E190,1,0),0))/MCSims) -> 2e-05 | H190: 0.0001000069 | I190: 0.0002400062 | K190: 7.978845608 | L190: 10.49666455
E191: 179 | F191: =MAX(0.0000000001, SUM(IF(OFFSET($K$12,0,0,MCSims,1)>E190,IF(OFFSET($K$12,0,0,MCSims,1)<=E191,1,0),0))/MCSims) -> 1e-10 | G191: =MAX(0.0000000001, SUM(IF(OFFSET($L$12,0,0,MCSims,1)>E190,IF(OFFSET($L$12,0,0,MCSims,1)<=E191,1,0),0))/MCSims) -> 2e-05 | H191: 0.0001000068 | I191: 0.0002200062 | K191: 0 | L191: 0
E192: 180 | F192: =MAX(0.0000000001, SUM(IF(OFFSET($K$12,0,0,MCSims,1)>E191,IF(OFFSET($K$12,0,0,MCSims,1)<=E192,1,0),0))/MCSims) -> 4e-05 | G192: =MAX(0.0000000001, SUM(IF(OFFSET($L$12,0,0,MCSims,1)>E191,IF(OFFSET($L$12,0,0,MCSims,1)<=E192,1,0),0))/MCSims) -> 1e-10 | H192: 0.0001000067 | I192: 0.0002000062 | K192: 0 | L192: 0
E193: 181 | F193: =MAX(0.0000000001, SUM(IF(OFFSET($K$12,0,0,MCSims,1)>E192,IF(OFFSET($K$12,0,0,MCSims,1)<=E193,1,0),0))/MCSims) -> 1e-10 | G193: =MAX(0.0000000001, SUM(IF(OFFSET($L$12,0,0,MCSims,1)>E192,IF(OFFSET($L$12,0,0,MCSims,1)<=E193,1,0),0))/MCSims) -> 2e-05 | H193: 6.00067e-05 | I193: 0.0002000061 | K193: 51.86249645 | L193: 49.93980785
E194: 182 | F194: =MAX(0.0000000001, SUM(IF(OFFSET($K$12,0,0,MCSims,1)>E193,IF(OFFSET($K$12,0,0,MCSims,1)<=E194,1,0),0))/MCSims) -> 1e-10 | G194: =MAX(0.0000000001, SUM(IF(OFFSET($L$12,0,0,MCSims,1)>E193,IF(OFFSET($L$12,0,0,MCSims,1)<=E194,1,0),0))/MCSims) -> 1e-10 | H194: 6.00066e-05 | I194: 0.0001800061 | K194: 15.95769122 | L194: 15.93675592
E195: 183 | F195: =MAX(0.0000000001, SUM(IF(OFFSET($K$12,0,0,MCSims,1)>E194,IF(OFFSET($K$12,0,0,MCSims,1)<=E195,1,0),0))/MCSims) -> 1e-10 | G195: =MAX(0.0000000001, SUM(IF(OFFSET($L$12,0,0,MCSims,1)>E194,IF(OFFSET($L$12,0,0,MCSims,1)<=E195,1,0),0))/MCSims) -> 1e-10 | H195: 6.00065e-05 | I195: 0.000180006 | K195: 51.86249645 | L195: 61.59583898
E196: 184 | F196: =MAX(0.0000000001, SUM(IF(OFFSET($K$12,0,0,MCSims,1)>E195,IF(OFFSET($K$12,0,0,MCSims,1)<=E196,1,0),0))/MCSims) -> 1e-10 | G196: =MAX(0.0000000001, SUM(IF(OFFSET($L$12,0,0,MCSims,1)>E195,IF(OFFSET($L$12,0,0,MCSims,1)<=E196,1,0),0))/MCSims) -> 1e-10 | H196: 6.00064e-05 | I196: 0.0001800059 | K196: 3.989422804 | L196: 0
E197: 185 | F197: =MAX(0.0000000001, SUM(IF(OFFSET($K$12,0,0,MCSims,1)>E196,IF(OFFSET($K$12,0,0,MCSims,1)<=E197,1,0),0))/MCSims) -> 1e-10 | G197: =MAX(0.0000000001, SUM(IF(OFFSET($L$12,0,0,MCSims,1)>E196,IF(OFFSET($L$12,0,0,MCSims,1)<=E197,1,0),0))/MCSims) -> 2e-05 | H197: 6.00063e-05 | I197: 0.0001800058 | K197: 7.978845608 | L197: 2.280284883
E198: 186 | F198: =MAX(0.0000000001, SUM(IF(OFFSET($K$12,0,0,MCSims,1)>E197,IF(OFFSET($K$12,0,0,MCSims,1)<=E198,1,0),0))/MCSims) -> 1e-10 | G198: =MAX(0.0000000001, SUM(IF(OFFSET($L$12,0,0,MCSims,1)>E197,IF(OFFSET($L$12,0,0,MCSims,1)<=E198,1,0),0))/MCSims) -> 4e-05 | H198: 6.00062e-05 | I198: 0.0001600058 | K198: 3.989422804 | L198: 0
E199: 187 | F199: =MAX(0.0000000001, SUM(IF(OFFSET($K$12,0,0,MCSims,1)>E198,IF(OFFSET($K$12,0,0,MCSims,1)<=E199,1,0),0))/MCSims) -> 1e-10 | G199: =MAX(0.0000000001, SUM(IF(OFFSET($L$12,0,0,MCSims,1)>E198,IF(OFFSET($L$12,0,0,MCSims,1)<=E199,1,0),0))/MCSims) -> 2e-05 | H199: 6.00061e-05 | I199: 0.0001200058 | K199: 27.92595963 | L199: 34.67055426
E200: 188 | F200: =MAX(0.0000000001, SUM(IF(OFFSET($K$12,0,0,MCSims,1)>E199,IF(OFFSET($K$12,0,0,MCSims,1)<=E200,1,0),0))/MCSims) -> 1e-10 | G200: =MAX(0.0000000001, SUM(IF(OFFSET($L$12,0,0,MCSims,1)>E199,IF(OFFSET($L$12,0,0,MCSims,1)<=E200,1,0),0))/MCSims) -> 2e-05 | H200: 6.0006e-05 | I200: 0.0001000058 | K200: 0 | L200: 0
E201: 189 | F201: =MAX(0.0000000001, SUM(IF(OFFSET($K$12,0,0,MCSims,1)>E200,IF(OFFSET($K$12,0,0,MCSims,1)<=E201,1,0),0))/MCSims) -> 1e-10 | G201: =MAX(0.0000000001, SUM(IF(OFFSET($L$12,0,0,MCSims,1)>E200,IF(OFFSET($L$12,0,0,MCSims,1)<=E201,1,0),0))/MCSims) -> 1e-10 | H201: 6.00059e-05 | I201: 8.00058e-05 | K201: 0 | L201: 0
E202: 190 | F202: =MAX(0.0000000001, SUM(IF(OFFSET($K$12,0,0,MCSims,1)>E201,IF(OFFSET($K$12,0,0,MCSims,1)<=E202,1,0),0))/MCSims) -> 1e-10 | G202: =MAX(0.0000000001, SUM(IF(OFFSET($L$12,0,0,MCSims,1)>E201,IF(OFFSET($L$12,0,0,MCSims,1)<=E202,1,0),0))/MCSims) -> 1e-10 | H202: 6.00058e-05 | I202: 8.00057e-05 | K202: 7.978845608 | L202: 0
E203: 191 | F203: =MAX(0.0000000001, SUM(IF(OFFSET($K$12,0,0,MCSims,1)>E202,IF(OFFSET($K$12,0,0,MCSims,1)<=E203,1,0),0))/MCSims) -> 1e-10 | G203: =MAX(0.0000000001, SUM(IF(OFFSET($L$12,0,0,MCSims,1)>E202,IF(OFFSET($L$12,0,0,MCSims,1)<=E203,1,0),0))/MCSims) -> 1e-10 | H203: 6.00057e-05 | I203: 8.00056e-05 | K203: 0 | L203: 0
E204: 192 | F204: =MAX(0.0000000001, SUM(IF(OFFSET($K$12,0,0,MCSims,1)>E203,IF(OFFSET($K$12,0,0,MCSims,1)<=E204,1,0),0))/MCSims) -> 1e-10 | G204: =MAX(0.0000000001, SUM(IF(OFFSET($L$12,0,0,MCSims,1)>E203,IF(OFFSET($L$12,0,0,MCSims,1)<=E204,1,0),0))/MCSims) -> 1e-10 | H204: 6.00056e-05 | I204: 8.00055e-05 | K204: 0 | L204: 0
E205: =E204+NumNames/100 -> 193 | F205: =MAX(0.0000000001, SUM(IF(OFFSET($K$12,0,0,MCSims,1)>E204,IF(OFFSET($K$12,0,0,MCSims,1)<=E205,1,0),0))/MCSims) -> 1e-10 | G205: =MAX(0.0000000001, SUM(IF(OFFSET($L$12,0,0,MCSims,1)>E204,IF(OFFSET($L$12,0,0,MCSims,1)<=E205,1,0),0))/MCSims) -> 1e-10 | H205: 6.00055e-05 | I205: 8.00054e-05 | K205: 0 | L205: 0
E206: 194 | F206: =MAX(0.0000000001, SUM(IF(OFFSET($K$12,0,0,MCSims,1)>E205,IF(OFFSET($K$12,0,0,MCSims,1)<=E206,1,0),0))/MCSims) -> 1e-10 | G206: =MAX(0.0000000001, SUM(IF(OFFSET($L$12,0,0,MCSims,1)>E205,IF(OFFSET($L$12,0,0,MCSims,1)<=E206,1,0),0))/MCSims) -> 1e-10 | H206: 6.00054e-05 | I206: 8.00053e-05 | K206: 7.978845608 | L206: 12.3543996
E207: 195 | F207: =MAX(0.0000000001, SUM(IF(OFFSET($K$12,0,0,MCSims,1)>E206,IF(OFFSET($K$12,0,0,MCSims,1)<=E207,1,0),0))/MCSims) -> 1e-10 | G207: =MAX(0.0000000001, SUM(IF(OFFSET($L$12,0,0,MCSims,1)>E206,IF(OFFSET($L$12,0,0,MCSims,1)<=E207,1,0),0))/MCSims) -> 1e-10 | H207: 6.00053e-05 | I207: 8.00052e-05 | K207: 3.989422804 | L207: 0
... 4293 more rows
